{"text_format":"3","workbook":"xlsx","n_sheets":2,"sheets":["Kezdés","Éves naptár"],"not_rendered":{"images":4,"defined_names":14},"read":"whole","date_system":"1900"}

{"sheet":"Kezdés","index":0,"n_rows":7,"n_cols":2,"rows_kept":7}
[null,"A SABLON BEMUTATÁSA"]
[null,"Ezzel a sablonnal egy, a kisvállalkozások számára hasznos, személyes naptárat hozhat létre egy tetszőleges évről."]
[null,"Írja be a cégnevet és a kapcsolattartási adatokat, valamint illessze be a cég emblémáját."]
[null,"Válassza ki az évet, illetve adja meg a fontosabb dátumokat és alkalmakat."]
[null,"Megjegyzés: "]
[null,"Az ÉVES NAPTÁR munkalap A oszlopában további útmutatások találhatók. Ez a szöveg szándékosan van elrejtve. Ha törölni szeretné a szöveget, jelölje ki az A oszlopot, majd nyomja le a DELETE billentyűt. "]
[null,"Ha többet meg szeretne tudni a táblázatokról, nyomja le a SHIFT+F10 billentyűkombinációt egy táblázaton belül, és válassza a TÁBLÁZAT parancsot, majd a HELYETTESÍTŐ SZÖVEG elemet."]

{"sheet":"Éves naptár","index":1,"n_rows":55,"n_cols":21,"rows_kept":55,"merged":[[0,2,0,5],[2,2,2,8],[2,10,2,16],[11,2,11,8],[11,10,11,16],[20,2,20,8],[20,10,20,16],[29,2,29,8],[29,10,29,16],[38,2,38,8],[38,10,38,16],[47,2,47,8],[47,10,47,16],[50,20,54,20]]}
["Ezen a munkalapon egy kisvállalkozásoknak szánt naptárat készíthet egy tetszőleges évről. Ennek az oszlopnak a celláiban a munkalap használatát megkönnyítő útmutatások olvashatók. A C1 cellában található év módosításához válassza a jobbra található cellában lévő léptetőt. A Fontos dátumok címke az U1 cellában található",null,2022,{"$nulls":17},"FONTOS DÁTUMOK"]
["A jobbra lévő cella tippeket tartalmaz","A naptár évét a léptető segítségével módosíthatja"]
["A kiválasztott év naptára a C3–Q55 cellákban, a január hónap naptára a C4–I10, a február hónap naptára a K4–Q10 cellákban találhatók. A Január címke a C3, a Február címke pedig a K3 cellákban található. Az U3–U42 cellákba írja be a fontos dátumokat és alkalmakat.",null,"JANUÁR",{"$nulls":7},"FEBRUÁR",{"$nulls":9},"JANUÁR 1."]
["A Január hónap naptárának táblázata a C4–I10, a Február hónap naptárának táblázata a K4–Q10 cellákban található. A következő utasítás az A12 cellában található",null,"H","K","SZE","CS","P","SZO","V",null,"H","K","SZE","CS","P","SZO","V",{"$nulls":3},"ÚJÉV"]
[null,null,{"$f":"IF(DAY(JanVas1)=1,\"\",IF(AND(YEAR(JanVas1+1)=NaptáriÉv,MONTH(JanVas1+1)=1),JanVas1+1,\"\"))","v":""},{"$f":"IF(DAY(JanVas1)=1,\"\",IF(AND(YEAR(JanVas1+2)=NaptáriÉv,MONTH(JanVas1+2)=1),JanVas1+2,\"\"))","v":""},{"$f":"IF(DAY(JanVas1)=1,\"\",IF(AND(YEAR(JanVas1+3)=NaptáriÉv,MONTH(JanVas1+3)=1),JanVas1+3,\"\"))","v":""},{"$f":"IF(DAY(JanVas1)=1,\"\",IF(AND(YEAR(JanVas1+4)=NaptáriÉv,MONTH(JanVas1+4)=1),JanVas1+4,\"\"))","v":""},{"$f":"IF(DAY(JanVas1)=1,\"\",IF(AND(YEAR(JanVas1+5)=NaptáriÉv,MONTH(JanVas1+5)=1),JanVas1+5,\"\"))","v":""},{"$f":"IF(DAY(JanVas1)=1,\"\",IF(AND(YEAR(JanVas1+6)=NaptáriÉv,MONTH(JanVas1+6)=1),JanVas1+6,\"\"))","v":"2022-01-01"},{"$f":"IF(DAY(JanVas1)=1,IF(AND(YEAR(JanVas1)=NaptáriÉv,MONTH(JanVas1)=1),JanVas1,\"\"),IF(AND(YEAR(JanVas1+7)=NaptáriÉv,MONTH(JanVas1+7)=1),JanVas1+7,\"\"))","v":"2022-01-02"},null,{"$f":"IF(DAY(FebVas1)=1,\"\",IF(AND(YEAR(FebVas1+1)=NaptáriÉv,MONTH(FebVas1+1)=2),FebVas1+1,\"\"))","v":""},{"$f":"IF(DAY(FebVas1)=1,\"\",IF(AND(YEAR(FebVas1+2)=NaptáriÉv,MONTH(FebVas1+2)=2),FebVas1+2,\"\"))","v":"2022-02-01"},{"$f":"IF(DAY(FebVas1)=1,\"\",IF(AND(YEAR(FebVas1+3)=NaptáriÉv,MONTH(FebVas1+3)=2),FebVas1+3,\"\"))","v":"2022-02-02"},{"$f":"IF(DAY(FebVas1)=1,\"\",IF(AND(YEAR(FebVas1+4)=NaptáriÉv,MONTH(FebVas1+4)=2),FebVas1+4,\"\"))","v":"2022-02-03"},{"$f":"IF(DAY(FebVas1)=1,\"\",IF(AND(YEAR(FebVas1+5)=NaptáriÉv,MONTH(FebVas1+5)=2),FebVas1+5,\"\"))","v":"2022-02-04"},{"$f":"IF(DAY(FebVas1)=1,\"\",IF(AND(YEAR(FebVas1+6)=NaptáriÉv,MONTH(FebVas1+6)=2),FebVas1+6,\"\"))","v":"2022-02-05"},{"$f":"IF(DAY(FebVas1)=1,IF(AND(YEAR(FebVas1)=NaptáriÉv,MONTH(FebVas1)=2),FebVas1,\"\"),IF(AND(YEAR(FebVas1+7)=NaptáriÉv,MONTH(FebVas1+7)=2),FebVas1+7,\"\"))","v":"2022-02-06"}]
[null,null,{"$f":"IF(DAY(JanVas1)=1,IF(AND(YEAR(JanVas1+1)=NaptáriÉv,MONTH(JanVas1+1)=1),JanVas1+1,\"\"),IF(AND(YEAR(JanVas1+8)=NaptáriÉv,MONTH(JanVas1+8)=1),JanVas1+8,\"\"))","v":"2022-01-03"},{"$f":"IF(DAY(JanVas1)=1,IF(AND(YEAR(JanVas1+2)=NaptáriÉv,MONTH(JanVas1+2)=1),JanVas1+2,\"\"),IF(AND(YEAR(JanVas1+9)=NaptáriÉv,MONTH(JanVas1+9)=1),JanVas1+9,\"\"))","v":"2022-01-04"},{"$f":"IF(DAY(JanVas1)=1,IF(AND(YEAR(JanVas1+3)=NaptáriÉv,MONTH(JanVas1+3)=1),JanVas1+3,\"\"),IF(AND(YEAR(JanVas1+10)=NaptáriÉv,MONTH(JanVas1+10)=1),JanVas1+10,\"\"))","v":"2022-01-05"},{"$f":"IF(DAY(JanVas1)=1,IF(AND(YEAR(JanVas1+4)=NaptáriÉv,MONTH(JanVas1+4)=1),JanVas1+4,\"\"),IF(AND(YEAR(JanVas1+11)=NaptáriÉv,MONTH(JanVas1+11)=1),JanVas1+11,\"\"))","v":"2022-01-06"},{"$f":"IF(DAY(JanVas1)=1,IF(AND(YEAR(JanVas1+5)=NaptáriÉv,MONTH(JanVas1+5)=1),JanVas1+5,\"\"),IF(AND(YEAR(JanVas1+12)=NaptáriÉv,MONTH(JanVas1+12)=1),JanVas1+12,\"\"))","v":"2022-01-07"},{"$f":"IF(DAY(JanVas1)=1,IF(AND(YEAR(JanVas1+6)=NaptáriÉv,MONTH(JanVas1+6)=1),JanVas1+6,\"\"),IF(AND(YEAR(JanVas1+13)=NaptáriÉv,MONTH(JanVas1+13)=1),JanVas1+13,\"\"))","v":"2022-01-08"},{"$f":"IF(DAY(JanVas1)=1,IF(AND(YEAR(JanVas1+7)=NaptáriÉv,MONTH(JanVas1+7)=1),JanVas1+7,\"\"),IF(AND(YEAR(JanVas1+14)=NaptáriÉv,MONTH(JanVas1+14)=1),JanVas1+14,\"\"))","v":"2022-01-09"},null,{"$f":"IF(DAY(FebVas1)=1,IF(AND(YEAR(FebVas1+1)=NaptáriÉv,MONTH(FebVas1+1)=2),FebVas1+1,\"\"),IF(AND(YEAR(FebVas1+8)=NaptáriÉv,MONTH(FebVas1+8)=2),FebVas1+8,\"\"))","v":"2022-02-07"},{"$f":"IF(DAY(FebVas1)=1,IF(AND(YEAR(FebVas1+2)=NaptáriÉv,MONTH(FebVas1+2)=2),FebVas1+2,\"\"),IF(AND(YEAR(FebVas1+9)=NaptáriÉv,MONTH(FebVas1+9)=2),FebVas1+9,\"\"))","v":"2022-02-08"},{"$f":"IF(DAY(FebVas1)=1,IF(AND(YEAR(FebVas1+3)=NaptáriÉv,MONTH(FebVas1+3)=2),FebVas1+3,\"\"),IF(AND(YEAR(FebVas1+10)=NaptáriÉv,MONTH(FebVas1+10)=2),FebVas1+10,\"\"))","v":"2022-02-09"},{"$f":"IF(DAY(FebVas1)=1,IF(AND(YEAR(FebVas1+4)=NaptáriÉv,MONTH(FebVas1+4)=2),FebVas1+4,\"\"),IF(AND(YEAR(FebVas1+11)=NaptáriÉv,MONTH(FebVas1+11)=2),FebVas1+11,\"\"))","v":"2022-02-10"},{"$f":"IF(DAY(FebVas1)=1,IF(AND(YEAR(FebVas1+5)=NaptáriÉv,MONTH(FebVas1+5)=2),FebVas1+5,\"\"),IF(AND(YEAR(FebVas1+12)=NaptáriÉv,MONTH(FebVas1+12)=2),FebVas1+12,\"\"))","v":"2022-02-11"},{"$f":"IF(DAY(FebVas1)=1,IF(AND(YEAR(FebVas1+6)=NaptáriÉv,MONTH(FebVas1+6)=2),FebVas1+6,\"\"),IF(AND(YEAR(FebVas1+13)=NaptáriÉv,MONTH(FebVas1+13)=2),FebVas1+13,\"\"))","v":"2022-02-12"},{"$f":"IF(DAY(FebVas1)=1,IF(AND(YEAR(FebVas1+7)=NaptáriÉv,MONTH(FebVas1+7)=2),FebVas1+7,\"\"),IF(AND(YEAR(FebVas1+14)=NaptáriÉv,MONTH(FebVas1+14)=2),FebVas1+14,\"\"))","v":"2022-02-13"},{"$nulls":3},"FEBRUÁR 14."]
[null,null,{"$f":"IF(DAY(JanVas1)=1,IF(AND(YEAR(JanVas1+8)=NaptáriÉv,MONTH(JanVas1+8)=1),JanVas1+8,\"\"),IF(AND(YEAR(JanVas1+15)=NaptáriÉv,MONTH(JanVas1+15)=1),JanVas1+15,\"\"))","v":"2022-01-10"},{"$f":"IF(DAY(JanVas1)=1,IF(AND(YEAR(JanVas1+9)=NaptáriÉv,MONTH(JanVas1+9)=1),JanVas1+9,\"\"),IF(AND(YEAR(JanVas1+16)=NaptáriÉv,MONTH(JanVas1+16)=1),JanVas1+16,\"\"))","v":"2022-01-11"},{"$f":"IF(DAY(JanVas1)=1,IF(AND(YEAR(JanVas1+10)=NaptáriÉv,MONTH(JanVas1+10)=1),JanVas1+10,\"\"),IF(AND(YEAR(JanVas1+17)=NaptáriÉv,MONTH(JanVas1+17)=1),JanVas1+17,\"\"))","v":"2022-01-12"},{"$f":"IF(DAY(JanVas1)=1,IF(AND(YEAR(JanVas1+11)=NaptáriÉv,MONTH(JanVas1+11)=1),JanVas1+11,\"\"),IF(AND(YEAR(JanVas1+18)=NaptáriÉv,MONTH(JanVas1+18)=1),JanVas1+18,\"\"))","v":"2022-01-13"},{"$f":"IF(DAY(JanVas1)=1,IF(AND(YEAR(JanVas1+12)=NaptáriÉv,MONTH(JanVas1+12)=1),JanVas1+12,\"\"),IF(AND(YEAR(JanVas1+19)=NaptáriÉv,MONTH(JanVas1+19)=1),JanVas1+19,\"\"))","v":"2022-01-14"},{"$f":"IF(DAY(JanVas1)=1,IF(AND(YEAR(JanVas1+13)=NaptáriÉv,MONTH(JanVas1+13)=1),JanVas1+13,\"\"),IF(AND(YEAR(JanVas1+20)=NaptáriÉv,MONTH(JanVas1+20)=1),JanVas1+20,\"\"))","v":"2022-01-15"},{"$f":"IF(DAY(JanVas1)=1,IF(AND(YEAR(JanVas1+14)=NaptáriÉv,MONTH(JanVas1+14)=1),JanVas1+14,\"\"),IF(AND(YEAR(JanVas1+21)=NaptáriÉv,MONTH(JanVas1+21)=1),JanVas1+21,\"\"))","v":"2022-01-16"},null,{"$f":"IF(DAY(FebVas1)=1,IF(AND(YEAR(FebVas1+8)=NaptáriÉv,MONTH(FebVas1+8)=2),FebVas1+8,\"\"),IF(AND(YEAR(FebVas1+15)=NaptáriÉv,MONTH(FebVas1+15)=2),FebVas1+15,\"\"))","v":"2022-02-14"},{"$f":"IF(DAY(FebVas1)=1,IF(AND(YEAR(FebVas1+9)=NaptáriÉv,MONTH(FebVas1+9)=2),FebVas1+9,\"\"),IF(AND(YEAR(FebVas1+16)=NaptáriÉv,MONTH(FebVas1+16)=2),FebVas1+16,\"\"))","v":"2022-02-15"},{"$f":"IF(DAY(FebVas1)=1,IF(AND(YEAR(FebVas1+10)=NaptáriÉv,MONTH(FebVas1+10)=2),FebVas1+10,\"\"),IF(AND(YEAR(FebVas1+17)=NaptáriÉv,MONTH(FebVas1+17)=2),FebVas1+17,\"\"))","v":"2022-02-16"},{"$f":"IF(DAY(FebVas1)=1,IF(AND(YEAR(FebVas1+11)=NaptáriÉv,MONTH(FebVas1+11)=2),FebVas1+11,\"\"),IF(AND(YEAR(FebVas1+18)=NaptáriÉv,MONTH(FebVas1+18)=2),FebVas1+18,\"\"))","v":"2022-02-17"},{"$f":"IF(DAY(FebVas1)=1,IF(AND(YEAR(FebVas1+12)=NaptáriÉv,MONTH(FebVas1+12)=2),FebVas1+12,\"\"),IF(AND(YEAR(FebVas1+19)=NaptáriÉv,MONTH(FebVas1+19)=2),FebVas1+19,\"\"))","v":"2022-02-18"},{"$f":"IF(DAY(FebVas1)=1,IF(AND(YEAR(FebVas1+13)=NaptáriÉv,MONTH(FebVas1+13)=2),FebVas1+13,\"\"),IF(AND(YEAR(FebVas1+20)=NaptáriÉv,MONTH(FebVas1+20)=2),FebVas1+20,\"\"))","v":"2022-02-19"},{"$f":"IF(DAY(FebVas1)=1,IF(AND(YEAR(FebVas1+14)=NaptáriÉv,MONTH(FebVas1+14)=2),FebVas1+14,\"\"),IF(AND(YEAR(FebVas1+21)=NaptáriÉv,MONTH(FebVas1+21)=2),FebVas1+21,\"\"))","v":"2022-02-20"},{"$nulls":3},"VALENTIN-NAP"]
[null,null,{"$f":"IF(DAY(JanVas1)=1,IF(AND(YEAR(JanVas1+15)=NaptáriÉv,MONTH(JanVas1+15)=1),JanVas1+15,\"\"),IF(AND(YEAR(JanVas1+22)=NaptáriÉv,MONTH(JanVas1+22)=1),JanVas1+22,\"\"))","v":"2022-01-17"},{"$f":"IF(DAY(JanVas1)=1,IF(AND(YEAR(JanVas1+16)=NaptáriÉv,MONTH(JanVas1+16)=1),JanVas1+16,\"\"),IF(AND(YEAR(JanVas1+23)=NaptáriÉv,MONTH(JanVas1+23)=1),JanVas1+23,\"\"))","v":"2022-01-18"},{"$f":"IF(DAY(JanVas1)=1,IF(AND(YEAR(JanVas1+17)=NaptáriÉv,MONTH(JanVas1+17)=1),JanVas1+17,\"\"),IF(AND(YEAR(JanVas1+24)=NaptáriÉv,MONTH(JanVas1+24)=1),JanVas1+24,\"\"))","v":"2022-01-19"},{"$f":"IF(DAY(JanVas1)=1,IF(AND(YEAR(JanVas1+18)=NaptáriÉv,MONTH(JanVas1+18)=1),JanVas1+18,\"\"),IF(AND(YEAR(JanVas1+25)=NaptáriÉv,MONTH(JanVas1+25)=1),JanVas1+25,\"\"))","v":"2022-01-20"},{"$f":"IF(DAY(JanVas1)=1,IF(AND(YEAR(JanVas1+19)=NaptáriÉv,MONTH(JanVas1+19)=1),JanVas1+19,\"\"),IF(AND(YEAR(JanVas1+26)=NaptáriÉv,MONTH(JanVas1+26)=1),JanVas1+26,\"\"))","v":"2022-01-21"},{"$f":"IF(DAY(JanVas1)=1,IF(AND(YEAR(JanVas1+20)=NaptáriÉv,MONTH(JanVas1+20)=1),JanVas1+20,\"\"),IF(AND(YEAR(JanVas1+27)=NaptáriÉv,MONTH(JanVas1+27)=1),JanVas1+27,\"\"))","v":"2022-01-22"},{"$f":"IF(DAY(JanVas1)=1,IF(AND(YEAR(JanVas1+21)=NaptáriÉv,MONTH(JanVas1+21)=1),JanVas1+21,\"\"),IF(AND(YEAR(JanVas1+28)=NaptáriÉv,MONTH(JanVas1+28)=1),JanVas1+28,\"\"))","v":"2022-01-23"},null,{"$f":"IF(DAY(FebVas1)=1,IF(AND(YEAR(FebVas1+15)=NaptáriÉv,MONTH(FebVas1+15)=2),FebVas1+15,\"\"),IF(AND(YEAR(FebVas1+22)=NaptáriÉv,MONTH(FebVas1+22)=2),FebVas1+22,\"\"))","v":"2022-02-21"},{"$f":"IF(DAY(FebVas1)=1,IF(AND(YEAR(FebVas1+16)=NaptáriÉv,MONTH(FebVas1+16)=2),FebVas1+16,\"\"),IF(AND(YEAR(FebVas1+23)=NaptáriÉv,MONTH(FebVas1+23)=2),FebVas1+23,\"\"))","v":"2022-02-22"},{"$f":"IF(DAY(FebVas1)=1,IF(AND(YEAR(FebVas1+17)=NaptáriÉv,MONTH(FebVas1+17)=2),FebVas1+17,\"\"),IF(AND(YEAR(FebVas1+24)=NaptáriÉv,MONTH(FebVas1+24)=2),FebVas1+24,\"\"))","v":"2022-02-23"},{"$f":"IF(DAY(FebVas1)=1,IF(AND(YEAR(FebVas1+18)=NaptáriÉv,MONTH(FebVas1+18)=2),FebVas1+18,\"\"),IF(AND(YEAR(FebVas1+25)=NaptáriÉv,MONTH(FebVas1+25)=2),FebVas1+25,\"\"))","v":"2022-02-24"},{"$f":"IF(DAY(FebVas1)=1,IF(AND(YEAR(FebVas1+19)=NaptáriÉv,MONTH(FebVas1+19)=2),FebVas1+19,\"\"),IF(AND(YEAR(FebVas1+26)=NaptáriÉv,MONTH(FebVas1+26)=2),FebVas1+26,\"\"))","v":"2022-02-25"},{"$f":"IF(DAY(FebVas1)=1,IF(AND(YEAR(FebVas1+20)=NaptáriÉv,MONTH(FebVas1+20)=2),FebVas1+20,\"\"),IF(AND(YEAR(FebVas1+27)=NaptáriÉv,MONTH(FebVas1+27)=2),FebVas1+27,\"\"))","v":"2022-02-26"},{"$f":"IF(DAY(FebVas1)=1,IF(AND(YEAR(FebVas1+21)=NaptáriÉv,MONTH(FebVas1+21)=2),FebVas1+21,\"\"),IF(AND(YEAR(FebVas1+28)=NaptáriÉv,MONTH(FebVas1+28)=2),FebVas1+28,\"\"))","v":"2022-02-27"}]
[null,null,{"$f":"IF(DAY(JanVas1)=1,IF(AND(YEAR(JanVas1+22)=NaptáriÉv,MONTH(JanVas1+22)=1),JanVas1+22,\"\"),IF(AND(YEAR(JanVas1+29)=NaptáriÉv,MONTH(JanVas1+29)=1),JanVas1+29,\"\"))","v":"2022-01-24"},{"$f":"IF(DAY(JanVas1)=1,IF(AND(YEAR(JanVas1+23)=NaptáriÉv,MONTH(JanVas1+23)=1),JanVas1+23,\"\"),IF(AND(YEAR(JanVas1+30)=NaptáriÉv,MONTH(JanVas1+30)=1),JanVas1+30,\"\"))","v":"2022-01-25"},{"$f":"IF(DAY(JanVas1)=1,IF(AND(YEAR(JanVas1+24)=NaptáriÉv,MONTH(JanVas1+24)=1),JanVas1+24,\"\"),IF(AND(YEAR(JanVas1+31)=NaptáriÉv,MONTH(JanVas1+31)=1),JanVas1+31,\"\"))","v":"2022-01-26"},{"$f":"IF(DAY(JanVas1)=1,IF(AND(YEAR(JanVas1+25)=NaptáriÉv,MONTH(JanVas1+25)=1),JanVas1+25,\"\"),IF(AND(YEAR(JanVas1+32)=NaptáriÉv,MONTH(JanVas1+32)=1),JanVas1+32,\"\"))","v":"2022-01-27"},{"$f":"IF(DAY(JanVas1)=1,IF(AND(YEAR(JanVas1+26)=NaptáriÉv,MONTH(JanVas1+26)=1),JanVas1+26,\"\"),IF(AND(YEAR(JanVas1+33)=NaptáriÉv,MONTH(JanVas1+33)=1),JanVas1+33,\"\"))","v":"2022-01-28"},{"$f":"IF(DAY(JanVas1)=1,IF(AND(YEAR(JanVas1+27)=NaptáriÉv,MONTH(JanVas1+27)=1),JanVas1+27,\"\"),IF(AND(YEAR(JanVas1+34)=NaptáriÉv,MONTH(JanVas1+34)=1),JanVas1+34,\"\"))","v":"2022-01-29"},{"$f":"IF(DAY(JanVas1)=1,IF(AND(YEAR(JanVas1+28)=NaptáriÉv,MONTH(JanVas1+28)=1),JanVas1+28,\"\"),IF(AND(YEAR(JanVas1+35)=NaptáriÉv,MONTH(JanVas1+35)=1),JanVas1+35,\"\"))","v":"2022-01-30"},null,{"$f":"IF(DAY(FebVas1)=1,IF(AND(YEAR(FebVas1+22)=NaptáriÉv,MONTH(FebVas1+22)=2),FebVas1+22,\"\"),IF(AND(YEAR(FebVas1+29)=NaptáriÉv,MONTH(FebVas1+29)=2),FebVas1+29,\"\"))","v":"2022-02-28"},{"$f":"IF(DAY(FebVas1)=1,IF(AND(YEAR(FebVas1+23)=NaptáriÉv,MONTH(FebVas1+23)=2),FebVas1+23,\"\"),IF(AND(YEAR(FebVas1+30)=NaptáriÉv,MONTH(FebVas1+30)=2),FebVas1+30,\"\"))","v":""},{"$f":"IF(DAY(FebVas1)=1,IF(AND(YEAR(FebVas1+24)=NaptáriÉv,MONTH(FebVas1+24)=2),FebVas1+24,\"\"),IF(AND(YEAR(FebVas1+31)=NaptáriÉv,MONTH(FebVas1+31)=2),FebVas1+31,\"\"))","v":""},{"$f":"IF(DAY(FebVas1)=1,IF(AND(YEAR(FebVas1+25)=NaptáriÉv,MONTH(FebVas1+25)=2),FebVas1+25,\"\"),IF(AND(YEAR(FebVas1+32)=NaptáriÉv,MONTH(FebVas1+32)=2),FebVas1+32,\"\"))","v":""},{"$f":"IF(DAY(FebVas1)=1,IF(AND(YEAR(FebVas1+26)=NaptáriÉv,MONTH(FebVas1+26)=2),FebVas1+26,\"\"),IF(AND(YEAR(FebVas1+33)=NaptáriÉv,MONTH(FebVas1+33)=2),FebVas1+33,\"\"))","v":""},{"$f":"IF(DAY(FebVas1)=1,IF(AND(YEAR(FebVas1+27)=NaptáriÉv,MONTH(FebVas1+27)=2),FebVas1+27,\"\"),IF(AND(YEAR(FebVas1+34)=NaptáriÉv,MONTH(FebVas1+34)=2),FebVas1+34,\"\"))","v":""},{"$f":"IF(DAY(FebVas1)=1,IF(AND(YEAR(FebVas1+28)=NaptáriÉv,MONTH(FebVas1+28)=2),FebVas1+28,\"\"),IF(AND(YEAR(FebVas1+35)=NaptáriÉv,MONTH(FebVas1+35)=2),FebVas1+35,\"\"))","v":""},{"$nulls":3},"FEBRUÁR 22."]
[null,null,{"$f":"IF(DAY(JanVas1)=1,IF(AND(YEAR(JanVas1+29)=NaptáriÉv,MONTH(JanVas1+29)=1),JanVas1+29,\"\"),IF(AND(YEAR(JanVas1+36)=NaptáriÉv,MONTH(JanVas1+36)=1),JanVas1+36,\"\"))","v":"2022-01-31"},{"$f":"IF(DAY(JanVas1)=1,IF(AND(YEAR(JanVas1+30)=NaptáriÉv,MONTH(JanVas1+30)=1),JanVas1+30,\"\"),IF(AND(YEAR(JanVas1+37)=NaptáriÉv,MONTH(JanVas1+37)=1),JanVas1+37,\"\"))","v":""},{"$f":"IF(DAY(JanVas1)=1,IF(AND(YEAR(JanVas1+31)=NaptáriÉv,MONTH(JanVas1+31)=1),JanVas1+31,\"\"),IF(AND(YEAR(JanVas1+38)=NaptáriÉv,MONTH(JanVas1+38)=1),JanVas1+38,\"\"))","v":""},{"$f":"IF(DAY(JanVas1)=1,IF(AND(YEAR(JanVas1+32)=NaptáriÉv,MONTH(JanVas1+32)=1),JanVas1+32,\"\"),IF(AND(YEAR(JanVas1+39)=NaptáriÉv,MONTH(JanVas1+39)=1),JanVas1+39,\"\"))","v":""},{"$f":"IF(DAY(JanVas1)=1,IF(AND(YEAR(JanVas1+33)=NaptáriÉv,MONTH(JanVas1+33)=1),JanVas1+33,\"\"),IF(AND(YEAR(JanVas1+40)=NaptáriÉv,MONTH(JanVas1+40)=1),JanVas1+40,\"\"))","v":""},{"$f":"IF(DAY(JanVas1)=1,IF(AND(YEAR(JanVas1+34)=NaptáriÉv,MONTH(JanVas1+34)=1),JanVas1+34,\"\"),IF(AND(YEAR(JanVas1+41)=NaptáriÉv,MONTH(JanVas1+41)=1),JanVas1+41,\"\"))","v":""},{"$f":"IF(DAY(JanVas1)=1,IF(AND(YEAR(JanVas1+35)=NaptáriÉv,MONTH(JanVas1+35)=1),JanVas1+35,\"\"),IF(AND(YEAR(JanVas1+42)=NaptáriÉv,MONTH(JanVas1+42)=1),JanVas1+42,\"\"))","v":""},null,{"$f":"IF(DAY(FebVas1)=1,IF(AND(YEAR(FebVas1+29)=NaptáriÉv,MONTH(FebVas1+29)=2),FebVas1+29,\"\"),IF(AND(YEAR(FebVas1+36)=NaptáriÉv,MONTH(FebVas1+36)=2),FebVas1+36,\"\"))","v":""},{"$f":"IF(DAY(FebVas1)=1,IF(AND(YEAR(FebVas1+30)=NaptáriÉv,MONTH(FebVas1+30)=2),FebVas1+30,\"\"),IF(AND(YEAR(FebVas1+37)=NaptáriÉv,MONTH(FebVas1+37)=2),FebVas1+37,\"\"))","v":""},{"$f":"IF(DAY(FebVas1)=1,IF(AND(YEAR(FebVas1+31)=NaptáriÉv,MONTH(FebVas1+31)=2),FebVas1+31,\"\"),IF(AND(YEAR(FebVas1+38)=NaptáriÉv,MONTH(FebVas1+38)=2),FebVas1+38,\"\"))","v":""},{"$f":"IF(DAY(FebVas1)=1,IF(AND(YEAR(FebVas1+32)=NaptáriÉv,MONTH(FebVas1+32)=2),FebVas1+32,\"\"),IF(AND(YEAR(FebVas1+39)=NaptáriÉv,MONTH(FebVas1+39)=2),FebVas1+39,\"\"))","v":""},{"$f":"IF(DAY(FebVas1)=1,IF(AND(YEAR(FebVas1+33)=NaptáriÉv,MONTH(FebVas1+33)=2),FebVas1+33,\"\"),IF(AND(YEAR(FebVas1+40)=NaptáriÉv,MONTH(FebVas1+40)=2),FebVas1+40,\"\"))","v":""},{"$f":"IF(DAY(FebVas1)=1,IF(AND(YEAR(FebVas1+34)=NaptáriÉv,MONTH(FebVas1+34)=2),FebVas1+34,\"\"),IF(AND(YEAR(FebVas1+41)=NaptáriÉv,MONTH(FebVas1+41)=2),FebVas1+41,\"\"))","v":""},{"$f":"IF(DAY(FebVas1)=1,IF(AND(YEAR(FebVas1+35)=NaptáriÉv,MONTH(FebVas1+35)=2),FebVas1+35,\"\"),IF(AND(YEAR(FebVas1+42)=NaptáriÉv,MONTH(FebVas1+42)=2),FebVas1+42,\"\"))","v":""},{"$nulls":3},"NYÍLT NAP"]
[]
["A Március címke a C12, az Április címke pedig a K12 cellákban található",null,"MÁRCIUS",{"$nulls":7},"ÁPRILIS"]
["A Március hónap naptárának táblázata a C13–I19, az Április hónap naptárának táblázata a K13–Q19 cellákban található. A következő utasítás az A21 cellában található",null,"H","K","SZE","CS","P","SZO","V",null,"H","K","SZE","CS","P","SZO","V"]
[null,null,{"$f":"IF(DAY(MárcVas1)=1,\"\",IF(AND(YEAR(MárcVas1+1)=NaptáriÉv,MONTH(MárcVas1+1)=3),MárcVas1+1,\"\"))","v":""},{"$f":"IF(DAY(MárcVas1)=1,\"\",IF(AND(YEAR(MárcVas1+2)=NaptáriÉv,MONTH(MárcVas1+2)=3),MárcVas1+2,\"\"))","v":"2022-03-01"},{"$f":"IF(DAY(MárcVas1)=1,\"\",IF(AND(YEAR(MárcVas1+3)=NaptáriÉv,MONTH(MárcVas1+3)=3),MárcVas1+3,\"\"))","v":"2022-03-02"},{"$f":"IF(DAY(MárcVas1)=1,\"\",IF(AND(YEAR(MárcVas1+4)=NaptáriÉv,MONTH(MárcVas1+4)=3),MárcVas1+4,\"\"))","v":"2022-03-03"},{"$f":"IF(DAY(MárcVas1)=1,\"\",IF(AND(YEAR(MárcVas1+5)=NaptáriÉv,MONTH(MárcVas1+5)=3),MárcVas1+5,\"\"))","v":"2022-03-04"},{"$f":"IF(DAY(MárcVas1)=1,\"\",IF(AND(YEAR(MárcVas1+6)=NaptáriÉv,MONTH(MárcVas1+6)=3),MárcVas1+6,\"\"))","v":"2022-03-05"},{"$f":"IF(DAY(MárcVas1)=1,IF(AND(YEAR(MárcVas1)=NaptáriÉv,MONTH(MárcVas1)=3),MárcVas1,\"\"),IF(AND(YEAR(MárcVas1+7)=NaptáriÉv,MONTH(MárcVas1+7)=3),MárcVas1+7,\"\"))","v":"2022-03-06"},null,{"$f":"IF(DAY(ÁprVas1)=1,\"\",IF(AND(YEAR(ÁprVas1+1)=NaptáriÉv,MONTH(ÁprVas1+1)=4),ÁprVas1+1,\"\"))","v":""},{"$f":"IF(DAY(ÁprVas1)=1,\"\",IF(AND(YEAR(ÁprVas1+2)=NaptáriÉv,MONTH(ÁprVas1+2)=4),ÁprVas1+2,\"\"))","v":""},{"$f":"IF(DAY(ÁprVas1)=1,\"\",IF(AND(YEAR(ÁprVas1+3)=NaptáriÉv,MONTH(ÁprVas1+3)=4),ÁprVas1+3,\"\"))","v":""},{"$f":"IF(DAY(ÁprVas1)=1,\"\",IF(AND(YEAR(ÁprVas1+4)=NaptáriÉv,MONTH(ÁprVas1+4)=4),ÁprVas1+4,\"\"))","v":""},{"$f":"IF(DAY(ÁprVas1)=1,\"\",IF(AND(YEAR(ÁprVas1+5)=NaptáriÉv,MONTH(ÁprVas1+5)=4),ÁprVas1+5,\"\"))","v":"2022-04-01"},{"$f":"IF(DAY(ÁprVas1)=1,\"\",IF(AND(YEAR(ÁprVas1+6)=NaptáriÉv,MONTH(ÁprVas1+6)=4),ÁprVas1+6,\"\"))","v":"2022-04-02"},{"$f":"IF(DAY(ÁprVas1)=1,IF(AND(YEAR(ÁprVas1)=NaptáriÉv,MONTH(ÁprVas1)=4),ÁprVas1,\"\"),IF(AND(YEAR(ÁprVas1+7)=NaptáriÉv,MONTH(ÁprVas1+7)=4),ÁprVas1+7,\"\"))","v":"2022-04-03"}]
[null,null,{"$f":"IF(DAY(MárcVas1)=1,IF(AND(YEAR(MárcVas1+1)=NaptáriÉv,MONTH(MárcVas1+1)=3),MárcVas1+1,\"\"),IF(AND(YEAR(MárcVas1+8)=NaptáriÉv,MONTH(MárcVas1+8)=3),MárcVas1+8,\"\"))","v":"2022-03-07"},{"$f":"IF(DAY(MárcVas1)=1,IF(AND(YEAR(MárcVas1+2)=NaptáriÉv,MONTH(MárcVas1+2)=3),MárcVas1+2,\"\"),IF(AND(YEAR(MárcVas1+9)=NaptáriÉv,MONTH(MárcVas1+9)=3),MárcVas1+9,\"\"))","v":"2022-03-08"},{"$f":"IF(DAY(MárcVas1)=1,IF(AND(YEAR(MárcVas1+3)=NaptáriÉv,MONTH(MárcVas1+3)=3),MárcVas1+3,\"\"),IF(AND(YEAR(MárcVas1+10)=NaptáriÉv,MONTH(MárcVas1+10)=3),MárcVas1+10,\"\"))","v":"2022-03-09"},{"$f":"IF(DAY(MárcVas1)=1,IF(AND(YEAR(MárcVas1+4)=NaptáriÉv,MONTH(MárcVas1+4)=3),MárcVas1+4,\"\"),IF(AND(YEAR(MárcVas1+11)=NaptáriÉv,MONTH(MárcVas1+11)=3),MárcVas1+11,\"\"))","v":"2022-03-10"},{"$f":"IF(DAY(MárcVas1)=1,IF(AND(YEAR(MárcVas1+5)=NaptáriÉv,MONTH(MárcVas1+5)=3),MárcVas1+5,\"\"),IF(AND(YEAR(MárcVas1+12)=NaptáriÉv,MONTH(MárcVas1+12)=3),MárcVas1+12,\"\"))","v":"2022-03-11"},{"$f":"IF(DAY(MárcVas1)=1,IF(AND(YEAR(MárcVas1+6)=NaptáriÉv,MONTH(MárcVas1+6)=3),MárcVas1+6,\"\"),IF(AND(YEAR(MárcVas1+13)=NaptáriÉv,MONTH(MárcVas1+13)=3),MárcVas1+13,\"\"))","v":"2022-03-12"},{"$f":"IF(DAY(MárcVas1)=1,IF(AND(YEAR(MárcVas1+7)=NaptáriÉv,MONTH(MárcVas1+7)=3),MárcVas1+7,\"\"),IF(AND(YEAR(MárcVas1+14)=NaptáriÉv,MONTH(MárcVas1+14)=3),MárcVas1+14,\"\"))","v":"2022-03-13"},null,{"$f":"IF(DAY(ÁprVas1)=1,IF(AND(YEAR(ÁprVas1+1)=NaptáriÉv,MONTH(ÁprVas1+1)=4),ÁprVas1+1,\"\"),IF(AND(YEAR(ÁprVas1+8)=NaptáriÉv,MONTH(ÁprVas1+8)=4),ÁprVas1+8,\"\"))","v":"2022-04-04"},{"$f":"IF(DAY(ÁprVas1)=1,IF(AND(YEAR(ÁprVas1+2)=NaptáriÉv,MONTH(ÁprVas1+2)=4),ÁprVas1+2,\"\"),IF(AND(YEAR(ÁprVas1+9)=NaptáriÉv,MONTH(ÁprVas1+9)=4),ÁprVas1+9,\"\"))","v":"2022-04-05"},{"$f":"IF(DAY(ÁprVas1)=1,IF(AND(YEAR(ÁprVas1+3)=NaptáriÉv,MONTH(ÁprVas1+3)=4),ÁprVas1+3,\"\"),IF(AND(YEAR(ÁprVas1+10)=NaptáriÉv,MONTH(ÁprVas1+10)=4),ÁprVas1+10,\"\"))","v":"2022-04-06"},{"$f":"IF(DAY(ÁprVas1)=1,IF(AND(YEAR(ÁprVas1+4)=NaptáriÉv,MONTH(ÁprVas1+4)=4),ÁprVas1+4,\"\"),IF(AND(YEAR(ÁprVas1+11)=NaptáriÉv,MONTH(ÁprVas1+11)=4),ÁprVas1+11,\"\"))","v":"2022-04-07"},{"$f":"IF(DAY(ÁprVas1)=1,IF(AND(YEAR(ÁprVas1+5)=NaptáriÉv,MONTH(ÁprVas1+5)=4),ÁprVas1+5,\"\"),IF(AND(YEAR(ÁprVas1+12)=NaptáriÉv,MONTH(ÁprVas1+12)=4),ÁprVas1+12,\"\"))","v":"2022-04-08"},{"$f":"IF(DAY(ÁprVas1)=1,IF(AND(YEAR(ÁprVas1+6)=NaptáriÉv,MONTH(ÁprVas1+6)=4),ÁprVas1+6,\"\"),IF(AND(YEAR(ÁprVas1+13)=NaptáriÉv,MONTH(ÁprVas1+13)=4),ÁprVas1+13,\"\"))","v":"2022-04-09"},{"$f":"IF(DAY(ÁprVas1)=1,IF(AND(YEAR(ÁprVas1+7)=NaptáriÉv,MONTH(ÁprVas1+7)=4),ÁprVas1+7,\"\"),IF(AND(YEAR(ÁprVas1+14)=NaptáriÉv,MONTH(ÁprVas1+14)=4),ÁprVas1+14,\"\"))","v":"2022-04-10"}]
[null,null,{"$f":"IF(DAY(MárcVas1)=1,IF(AND(YEAR(MárcVas1+8)=NaptáriÉv,MONTH(MárcVas1+8)=3),MárcVas1+8,\"\"),IF(AND(YEAR(MárcVas1+15)=NaptáriÉv,MONTH(MárcVas1+15)=3),MárcVas1+15,\"\"))","v":"2022-03-14"},{"$f":"IF(DAY(MárcVas1)=1,IF(AND(YEAR(MárcVas1+9)=NaptáriÉv,MONTH(MárcVas1+9)=3),MárcVas1+9,\"\"),IF(AND(YEAR(MárcVas1+16)=NaptáriÉv,MONTH(MárcVas1+16)=3),MárcVas1+16,\"\"))","v":"2022-03-15"},{"$f":"IF(DAY(MárcVas1)=1,IF(AND(YEAR(MárcVas1+10)=NaptáriÉv,MONTH(MárcVas1+10)=3),MárcVas1+10,\"\"),IF(AND(YEAR(MárcVas1+17)=NaptáriÉv,MONTH(MárcVas1+17)=3),MárcVas1+17,\"\"))","v":"2022-03-16"},{"$f":"IF(DAY(MárcVas1)=1,IF(AND(YEAR(MárcVas1+11)=NaptáriÉv,MONTH(MárcVas1+11)=3),MárcVas1+11,\"\"),IF(AND(YEAR(MárcVas1+18)=NaptáriÉv,MONTH(MárcVas1+18)=3),MárcVas1+18,\"\"))","v":"2022-03-17"},{"$f":"IF(DAY(MárcVas1)=1,IF(AND(YEAR(MárcVas1+12)=NaptáriÉv,MONTH(MárcVas1+12)=3),MárcVas1+12,\"\"),IF(AND(YEAR(MárcVas1+19)=NaptáriÉv,MONTH(MárcVas1+19)=3),MárcVas1+19,\"\"))","v":"2022-03-18"},{"$f":"IF(DAY(MárcVas1)=1,IF(AND(YEAR(MárcVas1+13)=NaptáriÉv,MONTH(MárcVas1+13)=3),MárcVas1+13,\"\"),IF(AND(YEAR(MárcVas1+20)=NaptáriÉv,MONTH(MárcVas1+20)=3),MárcVas1+20,\"\"))","v":"2022-03-19"},{"$f":"IF(DAY(MárcVas1)=1,IF(AND(YEAR(MárcVas1+14)=NaptáriÉv,MONTH(MárcVas1+14)=3),MárcVas1+14,\"\"),IF(AND(YEAR(MárcVas1+21)=NaptáriÉv,MONTH(MárcVas1+21)=3),MárcVas1+21,\"\"))","v":"2022-03-20"},null,{"$f":"IF(DAY(ÁprVas1)=1,IF(AND(YEAR(ÁprVas1+8)=NaptáriÉv,MONTH(ÁprVas1+8)=4),ÁprVas1+8,\"\"),IF(AND(YEAR(ÁprVas1+15)=NaptáriÉv,MONTH(ÁprVas1+15)=4),ÁprVas1+15,\"\"))","v":"2022-04-11"},{"$f":"IF(DAY(ÁprVas1)=1,IF(AND(YEAR(ÁprVas1+9)=NaptáriÉv,MONTH(ÁprVas1+9)=4),ÁprVas1+9,\"\"),IF(AND(YEAR(ÁprVas1+16)=NaptáriÉv,MONTH(ÁprVas1+16)=4),ÁprVas1+16,\"\"))","v":"2022-04-12"},{"$f":"IF(DAY(ÁprVas1)=1,IF(AND(YEAR(ÁprVas1+10)=NaptáriÉv,MONTH(ÁprVas1+10)=4),ÁprVas1+10,\"\"),IF(AND(YEAR(ÁprVas1+17)=NaptáriÉv,MONTH(ÁprVas1+17)=4),ÁprVas1+17,\"\"))","v":"2022-04-13"},{"$f":"IF(DAY(ÁprVas1)=1,IF(AND(YEAR(ÁprVas1+11)=NaptáriÉv,MONTH(ÁprVas1+11)=4),ÁprVas1+11,\"\"),IF(AND(YEAR(ÁprVas1+18)=NaptáriÉv,MONTH(ÁprVas1+18)=4),ÁprVas1+18,\"\"))","v":"2022-04-14"},{"$f":"IF(DAY(ÁprVas1)=1,IF(AND(YEAR(ÁprVas1+12)=NaptáriÉv,MONTH(ÁprVas1+12)=4),ÁprVas1+12,\"\"),IF(AND(YEAR(ÁprVas1+19)=NaptáriÉv,MONTH(ÁprVas1+19)=4),ÁprVas1+19,\"\"))","v":"2022-04-15"},{"$f":"IF(DAY(ÁprVas1)=1,IF(AND(YEAR(ÁprVas1+13)=NaptáriÉv,MONTH(ÁprVas1+13)=4),ÁprVas1+13,\"\"),IF(AND(YEAR(ÁprVas1+20)=NaptáriÉv,MONTH(ÁprVas1+20)=4),ÁprVas1+20,\"\"))","v":"2022-04-16"},{"$f":"IF(DAY(ÁprVas1)=1,IF(AND(YEAR(ÁprVas1+14)=NaptáriÉv,MONTH(ÁprVas1+14)=4),ÁprVas1+14,\"\"),IF(AND(YEAR(ÁprVas1+21)=NaptáriÉv,MONTH(ÁprVas1+21)=4),ÁprVas1+21,\"\"))","v":"2022-04-17"}]
[null,null,{"$f":"IF(DAY(MárcVas1)=1,IF(AND(YEAR(MárcVas1+15)=NaptáriÉv,MONTH(MárcVas1+15)=3),MárcVas1+15,\"\"),IF(AND(YEAR(MárcVas1+22)=NaptáriÉv,MONTH(MárcVas1+22)=3),MárcVas1+22,\"\"))","v":"2022-03-21"},{"$f":"IF(DAY(MárcVas1)=1,IF(AND(YEAR(MárcVas1+16)=NaptáriÉv,MONTH(MárcVas1+16)=3),MárcVas1+16,\"\"),IF(AND(YEAR(MárcVas1+23)=NaptáriÉv,MONTH(MárcVas1+23)=3),MárcVas1+23,\"\"))","v":"2022-03-22"},{"$f":"IF(DAY(MárcVas1)=1,IF(AND(YEAR(MárcVas1+17)=NaptáriÉv,MONTH(MárcVas1+17)=3),MárcVas1+17,\"\"),IF(AND(YEAR(MárcVas1+24)=NaptáriÉv,MONTH(MárcVas1+24)=3),MárcVas1+24,\"\"))","v":"2022-03-23"},{"$f":"IF(DAY(MárcVas1)=1,IF(AND(YEAR(MárcVas1+18)=NaptáriÉv,MONTH(MárcVas1+18)=3),MárcVas1+18,\"\"),IF(AND(YEAR(MárcVas1+25)=NaptáriÉv,MONTH(MárcVas1+25)=3),MárcVas1+25,\"\"))","v":"2022-03-24"},{"$f":"IF(DAY(MárcVas1)=1,IF(AND(YEAR(MárcVas1+19)=NaptáriÉv,MONTH(MárcVas1+19)=3),MárcVas1+19,\"\"),IF(AND(YEAR(MárcVas1+26)=NaptáriÉv,MONTH(MárcVas1+26)=3),MárcVas1+26,\"\"))","v":"2022-03-25"},{"$f":"IF(DAY(MárcVas1)=1,IF(AND(YEAR(MárcVas1+20)=NaptáriÉv,MONTH(MárcVas1+20)=3),MárcVas1+20,\"\"),IF(AND(YEAR(MárcVas1+27)=NaptáriÉv,MONTH(MárcVas1+27)=3),MárcVas1+27,\"\"))","v":"2022-03-26"},{"$f":"IF(DAY(MárcVas1)=1,IF(AND(YEAR(MárcVas1+21)=NaptáriÉv,MONTH(MárcVas1+21)=3),MárcVas1+21,\"\"),IF(AND(YEAR(MárcVas1+28)=NaptáriÉv,MONTH(MárcVas1+28)=3),MárcVas1+28,\"\"))","v":"2022-03-27"},null,{"$f":"IF(DAY(ÁprVas1)=1,IF(AND(YEAR(ÁprVas1+15)=NaptáriÉv,MONTH(ÁprVas1+15)=4),ÁprVas1+15,\"\"),IF(AND(YEAR(ÁprVas1+22)=NaptáriÉv,MONTH(ÁprVas1+22)=4),ÁprVas1+22,\"\"))","v":"2022-04-18"},{"$f":"IF(DAY(ÁprVas1)=1,IF(AND(YEAR(ÁprVas1+16)=NaptáriÉv,MONTH(ÁprVas1+16)=4),ÁprVas1+16,\"\"),IF(AND(YEAR(ÁprVas1+23)=NaptáriÉv,MONTH(ÁprVas1+23)=4),ÁprVas1+23,\"\"))","v":"2022-04-19"},{"$f":"IF(DAY(ÁprVas1)=1,IF(AND(YEAR(ÁprVas1+17)=NaptáriÉv,MONTH(ÁprVas1+17)=4),ÁprVas1+17,\"\"),IF(AND(YEAR(ÁprVas1+24)=NaptáriÉv,MONTH(ÁprVas1+24)=4),ÁprVas1+24,\"\"))","v":"2022-04-20"},{"$f":"IF(DAY(ÁprVas1)=1,IF(AND(YEAR(ÁprVas1+18)=NaptáriÉv,MONTH(ÁprVas1+18)=4),ÁprVas1+18,\"\"),IF(AND(YEAR(ÁprVas1+25)=NaptáriÉv,MONTH(ÁprVas1+25)=4),ÁprVas1+25,\"\"))","v":"2022-04-21"},{"$f":"IF(DAY(ÁprVas1)=1,IF(AND(YEAR(ÁprVas1+19)=NaptáriÉv,MONTH(ÁprVas1+19)=4),ÁprVas1+19,\"\"),IF(AND(YEAR(ÁprVas1+26)=NaptáriÉv,MONTH(ÁprVas1+26)=4),ÁprVas1+26,\"\"))","v":"2022-04-22"},{"$f":"IF(DAY(ÁprVas1)=1,IF(AND(YEAR(ÁprVas1+20)=NaptáriÉv,MONTH(ÁprVas1+20)=4),ÁprVas1+20,\"\"),IF(AND(YEAR(ÁprVas1+27)=NaptáriÉv,MONTH(ÁprVas1+27)=4),ÁprVas1+27,\"\"))","v":"2022-04-23"},{"$f":"IF(DAY(ÁprVas1)=1,IF(AND(YEAR(ÁprVas1+21)=NaptáriÉv,MONTH(ÁprVas1+21)=4),ÁprVas1+21,\"\"),IF(AND(YEAR(ÁprVas1+28)=NaptáriÉv,MONTH(ÁprVas1+28)=4),ÁprVas1+28,\"\"))","v":"2022-04-24"}]
[null,null,{"$f":"IF(DAY(MárcVas1)=1,IF(AND(YEAR(MárcVas1+22)=NaptáriÉv,MONTH(MárcVas1+22)=3),MárcVas1+22,\"\"),IF(AND(YEAR(MárcVas1+29)=NaptáriÉv,MONTH(MárcVas1+29)=3),MárcVas1+29,\"\"))","v":"2022-03-28"},{"$f":"IF(DAY(MárcVas1)=1,IF(AND(YEAR(MárcVas1+23)=NaptáriÉv,MONTH(MárcVas1+23)=3),MárcVas1+23,\"\"),IF(AND(YEAR(MárcVas1+30)=NaptáriÉv,MONTH(MárcVas1+30)=3),MárcVas1+30,\"\"))","v":"2022-03-29"},{"$f":"IF(DAY(MárcVas1)=1,IF(AND(YEAR(MárcVas1+24)=NaptáriÉv,MONTH(MárcVas1+24)=3),MárcVas1+24,\"\"),IF(AND(YEAR(MárcVas1+31)=NaptáriÉv,MONTH(MárcVas1+31)=3),MárcVas1+31,\"\"))","v":"2022-03-30"},{"$f":"IF(DAY(MárcVas1)=1,IF(AND(YEAR(MárcVas1+25)=NaptáriÉv,MONTH(MárcVas1+25)=3),MárcVas1+25,\"\"),IF(AND(YEAR(MárcVas1+32)=NaptáriÉv,MONTH(MárcVas1+32)=3),MárcVas1+32,\"\"))","v":"2022-03-31"},{"$f":"IF(DAY(MárcVas1)=1,IF(AND(YEAR(MárcVas1+26)=NaptáriÉv,MONTH(MárcVas1+26)=3),MárcVas1+26,\"\"),IF(AND(YEAR(MárcVas1+33)=NaptáriÉv,MONTH(MárcVas1+33)=3),MárcVas1+33,\"\"))","v":""},{"$f":"IF(DAY(MárcVas1)=1,IF(AND(YEAR(MárcVas1+27)=NaptáriÉv,MONTH(MárcVas1+27)=3),MárcVas1+27,\"\"),IF(AND(YEAR(MárcVas1+34)=NaptáriÉv,MONTH(MárcVas1+34)=3),MárcVas1+34,\"\"))","v":""},{"$f":"IF(DAY(MárcVas1)=1,IF(AND(YEAR(MárcVas1+28)=NaptáriÉv,MONTH(MárcVas1+28)=3),MárcVas1+28,\"\"),IF(AND(YEAR(MárcVas1+35)=NaptáriÉv,MONTH(MárcVas1+35)=3),MárcVas1+35,\"\"))","v":""},null,{"$f":"IF(DAY(ÁprVas1)=1,IF(AND(YEAR(ÁprVas1+22)=NaptáriÉv,MONTH(ÁprVas1+22)=4),ÁprVas1+22,\"\"),IF(AND(YEAR(ÁprVas1+29)=NaptáriÉv,MONTH(ÁprVas1+29)=4),ÁprVas1+29,\"\"))","v":"2022-04-25"},{"$f":"IF(DAY(ÁprVas1)=1,IF(AND(YEAR(ÁprVas1+23)=NaptáriÉv,MONTH(ÁprVas1+23)=4),ÁprVas1+23,\"\"),IF(AND(YEAR(ÁprVas1+30)=NaptáriÉv,MONTH(ÁprVas1+30)=4),ÁprVas1+30,\"\"))","v":"2022-04-26"},{"$f":"IF(DAY(ÁprVas1)=1,IF(AND(YEAR(ÁprVas1+24)=NaptáriÉv,MONTH(ÁprVas1+24)=4),ÁprVas1+24,\"\"),IF(AND(YEAR(ÁprVas1+31)=NaptáriÉv,MONTH(ÁprVas1+31)=4),ÁprVas1+31,\"\"))","v":"2022-04-27"},{"$f":"IF(DAY(ÁprVas1)=1,IF(AND(YEAR(ÁprVas1+25)=NaptáriÉv,MONTH(ÁprVas1+25)=4),ÁprVas1+25,\"\"),IF(AND(YEAR(ÁprVas1+32)=NaptáriÉv,MONTH(ÁprVas1+32)=4),ÁprVas1+32,\"\"))","v":"2022-04-28"},{"$f":"IF(DAY(ÁprVas1)=1,IF(AND(YEAR(ÁprVas1+26)=NaptáriÉv,MONTH(ÁprVas1+26)=4),ÁprVas1+26,\"\"),IF(AND(YEAR(ÁprVas1+33)=NaptáriÉv,MONTH(ÁprVas1+33)=4),ÁprVas1+33,\"\"))","v":"2022-04-29"},{"$f":"IF(DAY(ÁprVas1)=1,IF(AND(YEAR(ÁprVas1+27)=NaptáriÉv,MONTH(ÁprVas1+27)=4),ÁprVas1+27,\"\"),IF(AND(YEAR(ÁprVas1+34)=NaptáriÉv,MONTH(ÁprVas1+34)=4),ÁprVas1+34,\"\"))","v":"2022-04-30"},{"$f":"IF(DAY(ÁprVas1)=1,IF(AND(YEAR(ÁprVas1+28)=NaptáriÉv,MONTH(ÁprVas1+28)=4),ÁprVas1+28,\"\"),IF(AND(YEAR(ÁprVas1+35)=NaptáriÉv,MONTH(ÁprVas1+35)=4),ÁprVas1+35,\"\"))","v":""}]
[null,null,{"$f":"IF(DAY(MárcVas1)=1,IF(AND(YEAR(MárcVas1+29)=NaptáriÉv,MONTH(MárcVas1+29)=3),MárcVas1+29,\"\"),IF(AND(YEAR(MárcVas1+36)=NaptáriÉv,MONTH(MárcVas1+36)=3),MárcVas1+36,\"\"))","v":""},{"$f":"IF(DAY(MárcVas1)=1,IF(AND(YEAR(MárcVas1+30)=NaptáriÉv,MONTH(MárcVas1+30)=3),MárcVas1+30,\"\"),IF(AND(YEAR(MárcVas1+37)=NaptáriÉv,MONTH(MárcVas1+37)=3),MárcVas1+37,\"\"))","v":""},{"$f":"IF(DAY(MárcVas1)=1,IF(AND(YEAR(MárcVas1+31)=NaptáriÉv,MONTH(MárcVas1+31)=3),MárcVas1+31,\"\"),IF(AND(YEAR(MárcVas1+38)=NaptáriÉv,MONTH(MárcVas1+38)=3),MárcVas1+38,\"\"))","v":""},{"$f":"IF(DAY(MárcVas1)=1,IF(AND(YEAR(MárcVas1+32)=NaptáriÉv,MONTH(MárcVas1+32)=3),MárcVas1+32,\"\"),IF(AND(YEAR(MárcVas1+39)=NaptáriÉv,MONTH(MárcVas1+39)=3),MárcVas1+39,\"\"))","v":""},{"$f":"IF(DAY(MárcVas1)=1,IF(AND(YEAR(MárcVas1+33)=NaptáriÉv,MONTH(MárcVas1+33)=3),MárcVas1+33,\"\"),IF(AND(YEAR(MárcVas1+40)=NaptáriÉv,MONTH(MárcVas1+40)=3),MárcVas1+40,\"\"))","v":""},{"$f":"IF(DAY(MárcVas1)=1,IF(AND(YEAR(MárcVas1+34)=NaptáriÉv,MONTH(MárcVas1+34)=3),MárcVas1+34,\"\"),IF(AND(YEAR(MárcVas1+41)=NaptáriÉv,MONTH(MárcVas1+41)=3),MárcVas1+41,\"\"))","v":""},{"$f":"IF(DAY(MárcVas1)=1,IF(AND(YEAR(MárcVas1+35)=NaptáriÉv,MONTH(MárcVas1+35)=3),MárcVas1+35,\"\"),IF(AND(YEAR(MárcVas1+42)=NaptáriÉv,MONTH(MárcVas1+42)=3),MárcVas1+42,\"\"))","v":""},null,{"$f":"IF(DAY(ÁprVas1)=1,IF(AND(YEAR(ÁprVas1+29)=NaptáriÉv,MONTH(ÁprVas1+29)=4),ÁprVas1+29,\"\"),IF(AND(YEAR(ÁprVas1+36)=NaptáriÉv,MONTH(ÁprVas1+36)=4),ÁprVas1+36,\"\"))","v":""},{"$f":"IF(DAY(ÁprVas1)=1,IF(AND(YEAR(ÁprVas1+30)=NaptáriÉv,MONTH(ÁprVas1+30)=4),ÁprVas1+30,\"\"),IF(AND(YEAR(ÁprVas1+37)=NaptáriÉv,MONTH(ÁprVas1+37)=4),ÁprVas1+37,\"\"))","v":""},{"$f":"IF(DAY(ÁprVas1)=1,IF(AND(YEAR(ÁprVas1+31)=NaptáriÉv,MONTH(ÁprVas1+31)=4),ÁprVas1+31,\"\"),IF(AND(YEAR(ÁprVas1+38)=NaptáriÉv,MONTH(ÁprVas1+38)=4),ÁprVas1+38,\"\"))","v":""},{"$f":"IF(DAY(ÁprVas1)=1,IF(AND(YEAR(ÁprVas1+32)=NaptáriÉv,MONTH(ÁprVas1+32)=4),ÁprVas1+32,\"\"),IF(AND(YEAR(ÁprVas1+39)=NaptáriÉv,MONTH(ÁprVas1+39)=4),ÁprVas1+39,\"\"))","v":""},{"$f":"IF(DAY(ÁprVas1)=1,IF(AND(YEAR(ÁprVas1+33)=NaptáriÉv,MONTH(ÁprVas1+33)=4),ÁprVas1+33,\"\"),IF(AND(YEAR(ÁprVas1+40)=NaptáriÉv,MONTH(ÁprVas1+40)=4),ÁprVas1+40,\"\"))","v":""},{"$f":"IF(DAY(ÁprVas1)=1,IF(AND(YEAR(ÁprVas1+34)=NaptáriÉv,MONTH(ÁprVas1+34)=4),ÁprVas1+34,\"\"),IF(AND(YEAR(ÁprVas1+41)=NaptáriÉv,MONTH(ÁprVas1+41)=4),ÁprVas1+41,\"\"))","v":""},{"$f":"IF(DAY(ÁprVas1)=1,IF(AND(YEAR(ÁprVas1+35)=NaptáriÉv,MONTH(ÁprVas1+35)=4),ÁprVas1+35,\"\"),IF(AND(YEAR(ÁprVas1+42)=NaptáriÉv,MONTH(ÁprVas1+42)=4),ÁprVas1+42,\"\"))","v":""}]
[]
["A Május címke a C21, a Június címke pedig a K21 cellákban található",null,"MÁJUS",{"$nulls":7},"JÚNIUS"]
["A Május hónap naptárának táblázata a C22–I28, a Június hónap naptárának táblázata a K22–Q28 cellákban található. A következő utasítás az A30 cellában található",null,"H","K","SZE","CS","P","SZO","V",null,"H","K","SZE","CS","P","SZO","V"]
[null,null,{"$f":"IF(DAY(MájVas1)=1,\"\",IF(AND(YEAR(MájVas1+1)=NaptáriÉv,MONTH(MájVas1+1)=5),MájVas1+1,\"\"))","v":""},{"$f":"IF(DAY(MájVas1)=1,\"\",IF(AND(YEAR(MájVas1+2)=NaptáriÉv,MONTH(MájVas1+2)=5),MájVas1+2,\"\"))","v":""},{"$f":"IF(DAY(MájVas1)=1,\"\",IF(AND(YEAR(MájVas1+3)=NaptáriÉv,MONTH(MájVas1+3)=5),MájVas1+3,\"\"))","v":""},{"$f":"IF(DAY(MájVas1)=1,\"\",IF(AND(YEAR(MájVas1+4)=NaptáriÉv,MONTH(MájVas1+4)=5),MájVas1+4,\"\"))","v":""},{"$f":"IF(DAY(MájVas1)=1,\"\",IF(AND(YEAR(MájVas1+5)=NaptáriÉv,MONTH(MájVas1+5)=5),MájVas1+5,\"\"))","v":""},{"$f":"IF(DAY(MájVas1)=1,\"\",IF(AND(YEAR(MájVas1+6)=NaptáriÉv,MONTH(MájVas1+6)=5),MájVas1+6,\"\"))","v":""},{"$f":"IF(DAY(MájVas1)=1,IF(AND(YEAR(MájVas1)=NaptáriÉv,MONTH(MájVas1)=5),MájVas1,\"\"),IF(AND(YEAR(MájVas1+7)=NaptáriÉv,MONTH(MájVas1+7)=5),MájVas1+7,\"\"))","v":"2022-05-01"},null,{"$f":"IF(DAY(JúnVas1)=1,\"\",IF(AND(YEAR(JúnVas1+1)=NaptáriÉv,MONTH(JúnVas1+1)=6),JúnVas1+1,\"\"))","v":""},{"$f":"IF(DAY(JúnVas1)=1,\"\",IF(AND(YEAR(JúnVas1+2)=NaptáriÉv,MONTH(JúnVas1+2)=6),JúnVas1+2,\"\"))","v":""},{"$f":"IF(DAY(JúnVas1)=1,\"\",IF(AND(YEAR(JúnVas1+3)=NaptáriÉv,MONTH(JúnVas1+3)=6),JúnVas1+3,\"\"))","v":"2022-06-01"},{"$f":"IF(DAY(JúnVas1)=1,\"\",IF(AND(YEAR(JúnVas1+4)=NaptáriÉv,MONTH(JúnVas1+4)=6),JúnVas1+4,\"\"))","v":"2022-06-02"},{"$f":"IF(DAY(JúnVas1)=1,\"\",IF(AND(YEAR(JúnVas1+5)=NaptáriÉv,MONTH(JúnVas1+5)=6),JúnVas1+5,\"\"))","v":"2022-06-03"},{"$f":"IF(DAY(JúnVas1)=1,\"\",IF(AND(YEAR(JúnVas1+6)=NaptáriÉv,MONTH(JúnVas1+6)=6),JúnVas1+6,\"\"))","v":"2022-06-04"},{"$f":"IF(DAY(JúnVas1)=1,IF(AND(YEAR(JúnVas1)=NaptáriÉv,MONTH(JúnVas1)=6),JúnVas1,\"\"),IF(AND(YEAR(JúnVas1+7)=NaptáriÉv,MONTH(JúnVas1+7)=6),JúnVas1+7,\"\"))","v":"2022-06-05"}]
[null,null,{"$f":"IF(DAY(MájVas1)=1,IF(AND(YEAR(MájVas1+1)=NaptáriÉv,MONTH(MájVas1+1)=5),MájVas1+1,\"\"),IF(AND(YEAR(MájVas1+8)=NaptáriÉv,MONTH(MájVas1+8)=5),MájVas1+8,\"\"))","v":"2022-05-02"},{"$f":"IF(DAY(MájVas1)=1,IF(AND(YEAR(MájVas1+2)=NaptáriÉv,MONTH(MájVas1+2)=5),MájVas1+2,\"\"),IF(AND(YEAR(MájVas1+9)=NaptáriÉv,MONTH(MájVas1+9)=5),MájVas1+9,\"\"))","v":"2022-05-03"},{"$f":"IF(DAY(MájVas1)=1,IF(AND(YEAR(MájVas1+3)=NaptáriÉv,MONTH(MájVas1+3)=5),MájVas1+3,\"\"),IF(AND(YEAR(MájVas1+10)=NaptáriÉv,MONTH(MájVas1+10)=5),MájVas1+10,\"\"))","v":"2022-05-04"},{"$f":"IF(DAY(MájVas1)=1,IF(AND(YEAR(MájVas1+4)=NaptáriÉv,MONTH(MájVas1+4)=5),MájVas1+4,\"\"),IF(AND(YEAR(MájVas1+11)=NaptáriÉv,MONTH(MájVas1+11)=5),MájVas1+11,\"\"))","v":"2022-05-05"},{"$f":"IF(DAY(MájVas1)=1,IF(AND(YEAR(MájVas1+5)=NaptáriÉv,MONTH(MájVas1+5)=5),MájVas1+5,\"\"),IF(AND(YEAR(MájVas1+12)=NaptáriÉv,MONTH(MájVas1+12)=5),MájVas1+12,\"\"))","v":"2022-05-06"},{"$f":"IF(DAY(MájVas1)=1,IF(AND(YEAR(MájVas1+6)=NaptáriÉv,MONTH(MájVas1+6)=5),MájVas1+6,\"\"),IF(AND(YEAR(MájVas1+13)=NaptáriÉv,MONTH(MájVas1+13)=5),MájVas1+13,\"\"))","v":"2022-05-07"},{"$f":"IF(DAY(MájVas1)=1,IF(AND(YEAR(MájVas1+7)=NaptáriÉv,MONTH(MájVas1+7)=5),MájVas1+7,\"\"),IF(AND(YEAR(MájVas1+14)=NaptáriÉv,MONTH(MájVas1+14)=5),MájVas1+14,\"\"))","v":"2022-05-08"},null,{"$f":"IF(DAY(JúnVas1)=1,IF(AND(YEAR(JúnVas1+1)=NaptáriÉv,MONTH(JúnVas1+1)=6),JúnVas1+1,\"\"),IF(AND(YEAR(JúnVas1+8)=NaptáriÉv,MONTH(JúnVas1+8)=6),JúnVas1+8,\"\"))","v":"2022-06-06"},{"$f":"IF(DAY(JúnVas1)=1,IF(AND(YEAR(JúnVas1+2)=NaptáriÉv,MONTH(JúnVas1+2)=6),JúnVas1+2,\"\"),IF(AND(YEAR(JúnVas1+9)=NaptáriÉv,MONTH(JúnVas1+9)=6),JúnVas1+9,\"\"))","v":"2022-06-07"},{"$f":"IF(DAY(JúnVas1)=1,IF(AND(YEAR(JúnVas1+3)=NaptáriÉv,MONTH(JúnVas1+3)=6),JúnVas1+3,\"\"),IF(AND(YEAR(JúnVas1+10)=NaptáriÉv,MONTH(JúnVas1+10)=6),JúnVas1+10,\"\"))","v":"2022-06-08"},{"$f":"IF(DAY(JúnVas1)=1,IF(AND(YEAR(JúnVas1+4)=NaptáriÉv,MONTH(JúnVas1+4)=6),JúnVas1+4,\"\"),IF(AND(YEAR(JúnVas1+11)=NaptáriÉv,MONTH(JúnVas1+11)=6),JúnVas1+11,\"\"))","v":"2022-06-09"},{"$f":"IF(DAY(JúnVas1)=1,IF(AND(YEAR(JúnVas1+5)=NaptáriÉv,MONTH(JúnVas1+5)=6),JúnVas1+5,\"\"),IF(AND(YEAR(JúnVas1+12)=NaptáriÉv,MONTH(JúnVas1+12)=6),JúnVas1+12,\"\"))","v":"2022-06-10"},{"$f":"IF(DAY(JúnVas1)=1,IF(AND(YEAR(JúnVas1+6)=NaptáriÉv,MONTH(JúnVas1+6)=6),JúnVas1+6,\"\"),IF(AND(YEAR(JúnVas1+13)=NaptáriÉv,MONTH(JúnVas1+13)=6),JúnVas1+13,\"\"))","v":"2022-06-11"},{"$f":"IF(DAY(JúnVas1)=1,IF(AND(YEAR(JúnVas1+7)=NaptáriÉv,MONTH(JúnVas1+7)=6),JúnVas1+7,\"\"),IF(AND(YEAR(JúnVas1+14)=NaptáriÉv,MONTH(JúnVas1+14)=6),JúnVas1+14,\"\"))","v":"2022-06-12"}]
[null,null,{"$f":"IF(DAY(MájVas1)=1,IF(AND(YEAR(MájVas1+8)=NaptáriÉv,MONTH(MájVas1+8)=5),MájVas1+8,\"\"),IF(AND(YEAR(MájVas1+15)=NaptáriÉv,MONTH(MájVas1+15)=5),MájVas1+15,\"\"))","v":"2022-05-09"},{"$f":"IF(DAY(MájVas1)=1,IF(AND(YEAR(MájVas1+9)=NaptáriÉv,MONTH(MájVas1+9)=5),MájVas1+9,\"\"),IF(AND(YEAR(MájVas1+16)=NaptáriÉv,MONTH(MájVas1+16)=5),MájVas1+16,\"\"))","v":"2022-05-10"},{"$f":"IF(DAY(MájVas1)=1,IF(AND(YEAR(MájVas1+10)=NaptáriÉv,MONTH(MájVas1+10)=5),MájVas1+10,\"\"),IF(AND(YEAR(MájVas1+17)=NaptáriÉv,MONTH(MájVas1+17)=5),MájVas1+17,\"\"))","v":"2022-05-11"},{"$f":"IF(DAY(MájVas1)=1,IF(AND(YEAR(MájVas1+11)=NaptáriÉv,MONTH(MájVas1+11)=5),MájVas1+11,\"\"),IF(AND(YEAR(MájVas1+18)=NaptáriÉv,MONTH(MájVas1+18)=5),MájVas1+18,\"\"))","v":"2022-05-12"},{"$f":"IF(DAY(MájVas1)=1,IF(AND(YEAR(MájVas1+12)=NaptáriÉv,MONTH(MájVas1+12)=5),MájVas1+12,\"\"),IF(AND(YEAR(MájVas1+19)=NaptáriÉv,MONTH(MájVas1+19)=5),MájVas1+19,\"\"))","v":"2022-05-13"},{"$f":"IF(DAY(MájVas1)=1,IF(AND(YEAR(MájVas1+13)=NaptáriÉv,MONTH(MájVas1+13)=5),MájVas1+13,\"\"),IF(AND(YEAR(MájVas1+20)=NaptáriÉv,MONTH(MájVas1+20)=5),MájVas1+20,\"\"))","v":"2022-05-14"},{"$f":"IF(DAY(MájVas1)=1,IF(AND(YEAR(MájVas1+14)=NaptáriÉv,MONTH(MájVas1+14)=5),MájVas1+14,\"\"),IF(AND(YEAR(MájVas1+21)=NaptáriÉv,MONTH(MájVas1+21)=5),MájVas1+21,\"\"))","v":"2022-05-15"},null,{"$f":"IF(DAY(JúnVas1)=1,IF(AND(YEAR(JúnVas1+8)=NaptáriÉv,MONTH(JúnVas1+8)=6),JúnVas1+8,\"\"),IF(AND(YEAR(JúnVas1+15)=NaptáriÉv,MONTH(JúnVas1+15)=6),JúnVas1+15,\"\"))","v":"2022-06-13"},{"$f":"IF(DAY(JúnVas1)=1,IF(AND(YEAR(JúnVas1+9)=NaptáriÉv,MONTH(JúnVas1+9)=6),JúnVas1+9,\"\"),IF(AND(YEAR(JúnVas1+16)=NaptáriÉv,MONTH(JúnVas1+16)=6),JúnVas1+16,\"\"))","v":"2022-06-14"},{"$f":"IF(DAY(JúnVas1)=1,IF(AND(YEAR(JúnVas1+10)=NaptáriÉv,MONTH(JúnVas1+10)=6),JúnVas1+10,\"\"),IF(AND(YEAR(JúnVas1+17)=NaptáriÉv,MONTH(JúnVas1+17)=6),JúnVas1+17,\"\"))","v":"2022-06-15"},{"$f":"IF(DAY(JúnVas1)=1,IF(AND(YEAR(JúnVas1+11)=NaptáriÉv,MONTH(JúnVas1+11)=6),JúnVas1+11,\"\"),IF(AND(YEAR(JúnVas1+18)=NaptáriÉv,MONTH(JúnVas1+18)=6),JúnVas1+18,\"\"))","v":"2022-06-16"},{"$f":"IF(DAY(JúnVas1)=1,IF(AND(YEAR(JúnVas1+12)=NaptáriÉv,MONTH(JúnVas1+12)=6),JúnVas1+12,\"\"),IF(AND(YEAR(JúnVas1+19)=NaptáriÉv,MONTH(JúnVas1+19)=6),JúnVas1+19,\"\"))","v":"2022-06-17"},{"$f":"IF(DAY(JúnVas1)=1,IF(AND(YEAR(JúnVas1+13)=NaptáriÉv,MONTH(JúnVas1+13)=6),JúnVas1+13,\"\"),IF(AND(YEAR(JúnVas1+20)=NaptáriÉv,MONTH(JúnVas1+20)=6),JúnVas1+20,\"\"))","v":"2022-06-18"},{"$f":"IF(DAY(JúnVas1)=1,IF(AND(YEAR(JúnVas1+14)=NaptáriÉv,MONTH(JúnVas1+14)=6),JúnVas1+14,\"\"),IF(AND(YEAR(JúnVas1+21)=NaptáriÉv,MONTH(JúnVas1+21)=6),JúnVas1+21,\"\"))","v":"2022-06-19"}]
[null,null,{"$f":"IF(DAY(MájVas1)=1,IF(AND(YEAR(MájVas1+15)=NaptáriÉv,MONTH(MájVas1+15)=5),MájVas1+15,\"\"),IF(AND(YEAR(MájVas1+22)=NaptáriÉv,MONTH(MájVas1+22)=5),MájVas1+22,\"\"))","v":"2022-05-16"},{"$f":"IF(DAY(MájVas1)=1,IF(AND(YEAR(MájVas1+16)=NaptáriÉv,MONTH(MájVas1+16)=5),MájVas1+16,\"\"),IF(AND(YEAR(MájVas1+23)=NaptáriÉv,MONTH(MájVas1+23)=5),MájVas1+23,\"\"))","v":"2022-05-17"},{"$f":"IF(DAY(MájVas1)=1,IF(AND(YEAR(MájVas1+17)=NaptáriÉv,MONTH(MájVas1+17)=5),MájVas1+17,\"\"),IF(AND(YEAR(MájVas1+24)=NaptáriÉv,MONTH(MájVas1+24)=5),MájVas1+24,\"\"))","v":"2022-05-18"},{"$f":"IF(DAY(MájVas1)=1,IF(AND(YEAR(MájVas1+18)=NaptáriÉv,MONTH(MájVas1+18)=5),MájVas1+18,\"\"),IF(AND(YEAR(MájVas1+25)=NaptáriÉv,MONTH(MájVas1+25)=5),MájVas1+25,\"\"))","v":"2022-05-19"},{"$f":"IF(DAY(MájVas1)=1,IF(AND(YEAR(MájVas1+19)=NaptáriÉv,MONTH(MájVas1+19)=5),MájVas1+19,\"\"),IF(AND(YEAR(MájVas1+26)=NaptáriÉv,MONTH(MájVas1+26)=5),MájVas1+26,\"\"))","v":"2022-05-20"},{"$f":"IF(DAY(MájVas1)=1,IF(AND(YEAR(MájVas1+20)=NaptáriÉv,MONTH(MájVas1+20)=5),MájVas1+20,\"\"),IF(AND(YEAR(MájVas1+27)=NaptáriÉv,MONTH(MájVas1+27)=5),MájVas1+27,\"\"))","v":"2022-05-21"},{"$f":"IF(DAY(MájVas1)=1,IF(AND(YEAR(MájVas1+21)=NaptáriÉv,MONTH(MájVas1+21)=5),MájVas1+21,\"\"),IF(AND(YEAR(MájVas1+28)=NaptáriÉv,MONTH(MájVas1+28)=5),MájVas1+28,\"\"))","v":"2022-05-22"},null,{"$f":"IF(DAY(JúnVas1)=1,IF(AND(YEAR(JúnVas1+15)=NaptáriÉv,MONTH(JúnVas1+15)=6),JúnVas1+15,\"\"),IF(AND(YEAR(JúnVas1+22)=NaptáriÉv,MONTH(JúnVas1+22)=6),JúnVas1+22,\"\"))","v":"2022-06-20"},{"$f":"IF(DAY(JúnVas1)=1,IF(AND(YEAR(JúnVas1+16)=NaptáriÉv,MONTH(JúnVas1+16)=6),JúnVas1+16,\"\"),IF(AND(YEAR(JúnVas1+23)=NaptáriÉv,MONTH(JúnVas1+23)=6),JúnVas1+23,\"\"))","v":"2022-06-21"},{"$f":"IF(DAY(JúnVas1)=1,IF(AND(YEAR(JúnVas1+17)=NaptáriÉv,MONTH(JúnVas1+17)=6),JúnVas1+17,\"\"),IF(AND(YEAR(JúnVas1+24)=NaptáriÉv,MONTH(JúnVas1+24)=6),JúnVas1+24,\"\"))","v":"2022-06-22"},{"$f":"IF(DAY(JúnVas1)=1,IF(AND(YEAR(JúnVas1+18)=NaptáriÉv,MONTH(JúnVas1+18)=6),JúnVas1+18,\"\"),IF(AND(YEAR(JúnVas1+25)=NaptáriÉv,MONTH(JúnVas1+25)=6),JúnVas1+25,\"\"))","v":"2022-06-23"},{"$f":"IF(DAY(JúnVas1)=1,IF(AND(YEAR(JúnVas1+19)=NaptáriÉv,MONTH(JúnVas1+19)=6),JúnVas1+19,\"\"),IF(AND(YEAR(JúnVas1+26)=NaptáriÉv,MONTH(JúnVas1+26)=6),JúnVas1+26,\"\"))","v":"2022-06-24"},{"$f":"IF(DAY(JúnVas1)=1,IF(AND(YEAR(JúnVas1+20)=NaptáriÉv,MONTH(JúnVas1+20)=6),JúnVas1+20,\"\"),IF(AND(YEAR(JúnVas1+27)=NaptáriÉv,MONTH(JúnVas1+27)=6),JúnVas1+27,\"\"))","v":"2022-06-25"},{"$f":"IF(DAY(JúnVas1)=1,IF(AND(YEAR(JúnVas1+21)=NaptáriÉv,MONTH(JúnVas1+21)=6),JúnVas1+21,\"\"),IF(AND(YEAR(JúnVas1+28)=NaptáriÉv,MONTH(JúnVas1+28)=6),JúnVas1+28,\"\"))","v":"2022-06-26"}]
[null,null,{"$f":"IF(DAY(MájVas1)=1,IF(AND(YEAR(MájVas1+22)=NaptáriÉv,MONTH(MájVas1+22)=5),MájVas1+22,\"\"),IF(AND(YEAR(MájVas1+29)=NaptáriÉv,MONTH(MájVas1+29)=5),MájVas1+29,\"\"))","v":"2022-05-23"},{"$f":"IF(DAY(MájVas1)=1,IF(AND(YEAR(MájVas1+23)=NaptáriÉv,MONTH(MájVas1+23)=5),MájVas1+23,\"\"),IF(AND(YEAR(MájVas1+30)=NaptáriÉv,MONTH(MájVas1+30)=5),MájVas1+30,\"\"))","v":"2022-05-24"},{"$f":"IF(DAY(MájVas1)=1,IF(AND(YEAR(MájVas1+24)=NaptáriÉv,MONTH(MájVas1+24)=5),MájVas1+24,\"\"),IF(AND(YEAR(MájVas1+31)=NaptáriÉv,MONTH(MájVas1+31)=5),MájVas1+31,\"\"))","v":"2022-05-25"},{"$f":"IF(DAY(MájVas1)=1,IF(AND(YEAR(MájVas1+25)=NaptáriÉv,MONTH(MájVas1+25)=5),MájVas1+25,\"\"),IF(AND(YEAR(MájVas1+32)=NaptáriÉv,MONTH(MájVas1+32)=5),MájVas1+32,\"\"))","v":"2022-05-26"},{"$f":"IF(DAY(MájVas1)=1,IF(AND(YEAR(MájVas1+26)=NaptáriÉv,MONTH(MájVas1+26)=5),MájVas1+26,\"\"),IF(AND(YEAR(MájVas1+33)=NaptáriÉv,MONTH(MájVas1+33)=5),MájVas1+33,\"\"))","v":"2022-05-27"},{"$f":"IF(DAY(MájVas1)=1,IF(AND(YEAR(MájVas1+27)=NaptáriÉv,MONTH(MájVas1+27)=5),MájVas1+27,\"\"),IF(AND(YEAR(MájVas1+34)=NaptáriÉv,MONTH(MájVas1+34)=5),MájVas1+34,\"\"))","v":"2022-05-28"},{"$f":"IF(DAY(MájVas1)=1,IF(AND(YEAR(MájVas1+28)=NaptáriÉv,MONTH(MájVas1+28)=5),MájVas1+28,\"\"),IF(AND(YEAR(MájVas1+35)=NaptáriÉv,MONTH(MájVas1+35)=5),MájVas1+35,\"\"))","v":"2022-05-29"},null,{"$f":"IF(DAY(JúnVas1)=1,IF(AND(YEAR(JúnVas1+22)=NaptáriÉv,MONTH(JúnVas1+22)=6),JúnVas1+22,\"\"),IF(AND(YEAR(JúnVas1+29)=NaptáriÉv,MONTH(JúnVas1+29)=6),JúnVas1+29,\"\"))","v":"2022-06-27"},{"$f":"IF(DAY(JúnVas1)=1,IF(AND(YEAR(JúnVas1+23)=NaptáriÉv,MONTH(JúnVas1+23)=6),JúnVas1+23,\"\"),IF(AND(YEAR(JúnVas1+30)=NaptáriÉv,MONTH(JúnVas1+30)=6),JúnVas1+30,\"\"))","v":"2022-06-28"},{"$f":"IF(DAY(JúnVas1)=1,IF(AND(YEAR(JúnVas1+24)=NaptáriÉv,MONTH(JúnVas1+24)=6),JúnVas1+24,\"\"),IF(AND(YEAR(JúnVas1+31)=NaptáriÉv,MONTH(JúnVas1+31)=6),JúnVas1+31,\"\"))","v":"2022-06-29"},{"$f":"IF(DAY(JúnVas1)=1,IF(AND(YEAR(JúnVas1+25)=NaptáriÉv,MONTH(JúnVas1+25)=6),JúnVas1+25,\"\"),IF(AND(YEAR(JúnVas1+32)=NaptáriÉv,MONTH(JúnVas1+32)=6),JúnVas1+32,\"\"))","v":"2022-06-30"},{"$f":"IF(DAY(JúnVas1)=1,IF(AND(YEAR(JúnVas1+26)=NaptáriÉv,MONTH(JúnVas1+26)=6),JúnVas1+26,\"\"),IF(AND(YEAR(JúnVas1+33)=NaptáriÉv,MONTH(JúnVas1+33)=6),JúnVas1+33,\"\"))","v":""},{"$f":"IF(DAY(JúnVas1)=1,IF(AND(YEAR(JúnVas1+27)=NaptáriÉv,MONTH(JúnVas1+27)=6),JúnVas1+27,\"\"),IF(AND(YEAR(JúnVas1+34)=NaptáriÉv,MONTH(JúnVas1+34)=6),JúnVas1+34,\"\"))","v":""},{"$f":"IF(DAY(JúnVas1)=1,IF(AND(YEAR(JúnVas1+28)=NaptáriÉv,MONTH(JúnVas1+28)=6),JúnVas1+28,\"\"),IF(AND(YEAR(JúnVas1+35)=NaptáriÉv,MONTH(JúnVas1+35)=6),JúnVas1+35,\"\"))","v":""}]
[null,null,{"$f":"IF(DAY(MájVas1)=1,IF(AND(YEAR(MájVas1+29)=NaptáriÉv,MONTH(MájVas1+29)=5),MájVas1+29,\"\"),IF(AND(YEAR(MájVas1+36)=NaptáriÉv,MONTH(MájVas1+36)=5),MájVas1+36,\"\"))","v":"2022-05-30"},{"$f":"IF(DAY(MájVas1)=1,IF(AND(YEAR(MájVas1+30)=NaptáriÉv,MONTH(MájVas1+30)=5),MájVas1+30,\"\"),IF(AND(YEAR(MájVas1+37)=NaptáriÉv,MONTH(MájVas1+37)=5),MájVas1+37,\"\"))","v":"2022-05-31"},{"$f":"IF(DAY(MájVas1)=1,IF(AND(YEAR(MájVas1+31)=NaptáriÉv,MONTH(MájVas1+31)=5),MájVas1+31,\"\"),IF(AND(YEAR(MájVas1+38)=NaptáriÉv,MONTH(MájVas1+38)=5),MájVas1+38,\"\"))","v":""},{"$f":"IF(DAY(MájVas1)=1,IF(AND(YEAR(MájVas1+32)=NaptáriÉv,MONTH(MájVas1+32)=5),MájVas1+32,\"\"),IF(AND(YEAR(MájVas1+39)=NaptáriÉv,MONTH(MájVas1+39)=5),MájVas1+39,\"\"))","v":""},{"$f":"IF(DAY(MájVas1)=1,IF(AND(YEAR(MájVas1+33)=NaptáriÉv,MONTH(MájVas1+33)=5),MájVas1+33,\"\"),IF(AND(YEAR(MájVas1+40)=NaptáriÉv,MONTH(MájVas1+40)=5),MájVas1+40,\"\"))","v":""},{"$f":"IF(DAY(MájVas1)=1,IF(AND(YEAR(MájVas1+34)=NaptáriÉv,MONTH(MájVas1+34)=5),MájVas1+34,\"\"),IF(AND(YEAR(MájVas1+41)=NaptáriÉv,MONTH(MájVas1+41)=5),MájVas1+41,\"\"))","v":""},{"$f":"IF(DAY(MájVas1)=1,IF(AND(YEAR(MájVas1+35)=NaptáriÉv,MONTH(MájVas1+35)=5),MájVas1+35,\"\"),IF(AND(YEAR(MájVas1+42)=NaptáriÉv,MONTH(MájVas1+42)=5),MájVas1+42,\"\"))","v":""},null,{"$f":"IF(DAY(JúnVas1)=1,IF(AND(YEAR(JúnVas1+29)=NaptáriÉv,MONTH(JúnVas1+29)=6),JúnVas1+29,\"\"),IF(AND(YEAR(JúnVas1+36)=NaptáriÉv,MONTH(JúnVas1+36)=6),JúnVas1+36,\"\"))","v":""},{"$f":"IF(DAY(JúnVas1)=1,IF(AND(YEAR(JúnVas1+30)=NaptáriÉv,MONTH(JúnVas1+30)=6),JúnVas1+30,\"\"),IF(AND(YEAR(JúnVas1+37)=NaptáriÉv,MONTH(JúnVas1+37)=6),JúnVas1+37,\"\"))","v":""},{"$f":"IF(DAY(JúnVas1)=1,IF(AND(YEAR(JúnVas1+31)=NaptáriÉv,MONTH(JúnVas1+31)=6),JúnVas1+31,\"\"),IF(AND(YEAR(JúnVas1+38)=NaptáriÉv,MONTH(JúnVas1+38)=6),JúnVas1+38,\"\"))","v":""},{"$f":"IF(DAY(JúnVas1)=1,IF(AND(YEAR(JúnVas1+32)=NaptáriÉv,MONTH(JúnVas1+32)=6),JúnVas1+32,\"\"),IF(AND(YEAR(JúnVas1+39)=NaptáriÉv,MONTH(JúnVas1+39)=6),JúnVas1+39,\"\"))","v":""},{"$f":"IF(DAY(JúnVas1)=1,IF(AND(YEAR(JúnVas1+33)=NaptáriÉv,MONTH(JúnVas1+33)=6),JúnVas1+33,\"\"),IF(AND(YEAR(JúnVas1+40)=NaptáriÉv,MONTH(JúnVas1+40)=6),JúnVas1+40,\"\"))","v":""},{"$f":"IF(DAY(JúnVas1)=1,IF(AND(YEAR(JúnVas1+34)=NaptáriÉv,MONTH(JúnVas1+34)=6),JúnVas1+34,\"\"),IF(AND(YEAR(JúnVas1+41)=NaptáriÉv,MONTH(JúnVas1+41)=6),JúnVas1+41,\"\"))","v":""},{"$f":"IF(DAY(JúnVas1)=1,IF(AND(YEAR(JúnVas1+35)=NaptáriÉv,MONTH(JúnVas1+35)=6),JúnVas1+35,\"\"),IF(AND(YEAR(JúnVas1+42)=NaptáriÉv,MONTH(JúnVas1+42)=6),JúnVas1+42,\"\"))","v":""}]
[]
["A Július címke a C30, az Augusztus címke pedig a K30 cellákban található",null,"JÚLIUS",{"$nulls":7},"AUGUSZTUS"]
["A Július hónap naptárának táblázata a C31–I37, az Augusztus hónap naptárának táblázata a K31–Q37 cellákban található. A következő utasítás az A39 cellában található",null,"H","K","SZE","CS","P","SZO","V",null,"H","K","SZE","CS","P","SZO","V"]
[null,null,{"$f":"IF(DAY(JúlVas1)=1,\"\",IF(AND(YEAR(JúlVas1+1)=NaptáriÉv,MONTH(JúlVas1+1)=7),JúlVas1+1,\"\"))","v":""},{"$f":"IF(DAY(JúlVas1)=1,\"\",IF(AND(YEAR(JúlVas1+2)=NaptáriÉv,MONTH(JúlVas1+2)=7),JúlVas1+2,\"\"))","v":""},{"$f":"IF(DAY(JúlVas1)=1,\"\",IF(AND(YEAR(JúlVas1+3)=NaptáriÉv,MONTH(JúlVas1+3)=7),JúlVas1+3,\"\"))","v":""},{"$f":"IF(DAY(JúlVas1)=1,\"\",IF(AND(YEAR(JúlVas1+4)=NaptáriÉv,MONTH(JúlVas1+4)=7),JúlVas1+4,\"\"))","v":""},{"$f":"IF(DAY(JúlVas1)=1,\"\",IF(AND(YEAR(JúlVas1+5)=NaptáriÉv,MONTH(JúlVas1+5)=7),JúlVas1+5,\"\"))","v":"2022-07-01"},{"$f":"IF(DAY(JúlVas1)=1,\"\",IF(AND(YEAR(JúlVas1+6)=NaptáriÉv,MONTH(JúlVas1+6)=7),JúlVas1+6,\"\"))","v":"2022-07-02"},{"$f":"IF(DAY(JúlVas1)=1,IF(AND(YEAR(JúlVas1)=NaptáriÉv,MONTH(JúlVas1)=7),JúlVas1,\"\"),IF(AND(YEAR(JúlVas1+7)=NaptáriÉv,MONTH(JúlVas1+7)=7),JúlVas1+7,\"\"))","v":"2022-07-03"},null,{"$f":"IF(DAY(AugVas1)=1,\"\",IF(AND(YEAR(AugVas1+1)=NaptáriÉv,MONTH(AugVas1+1)=8),AugVas1+1,\"\"))","v":"2022-08-01"},{"$f":"IF(DAY(AugVas1)=1,\"\",IF(AND(YEAR(AugVas1+2)=NaptáriÉv,MONTH(AugVas1+2)=8),AugVas1+2,\"\"))","v":"2022-08-02"},{"$f":"IF(DAY(AugVas1)=1,\"\",IF(AND(YEAR(AugVas1+3)=NaptáriÉv,MONTH(AugVas1+3)=8),AugVas1+3,\"\"))","v":"2022-08-03"},{"$f":"IF(DAY(AugVas1)=1,\"\",IF(AND(YEAR(AugVas1+4)=NaptáriÉv,MONTH(AugVas1+4)=8),AugVas1+4,\"\"))","v":"2022-08-04"},{"$f":"IF(DAY(AugVas1)=1,\"\",IF(AND(YEAR(AugVas1+5)=NaptáriÉv,MONTH(AugVas1+5)=8),AugVas1+5,\"\"))","v":"2022-08-05"},{"$f":"IF(DAY(AugVas1)=1,\"\",IF(AND(YEAR(AugVas1+6)=NaptáriÉv,MONTH(AugVas1+6)=8),AugVas1+6,\"\"))","v":"2022-08-06"},{"$f":"IF(DAY(AugVas1)=1,IF(AND(YEAR(AugVas1)=NaptáriÉv,MONTH(AugVas1)=8),AugVas1,\"\"),IF(AND(YEAR(AugVas1+7)=NaptáriÉv,MONTH(AugVas1+7)=8),AugVas1+7,\"\"))","v":"2022-08-07"}]
[null,null,{"$f":"IF(DAY(JúlVas1)=1,IF(AND(YEAR(JúlVas1+1)=NaptáriÉv,MONTH(JúlVas1+1)=7),JúlVas1+1,\"\"),IF(AND(YEAR(JúlVas1+8)=NaptáriÉv,MONTH(JúlVas1+8)=7),JúlVas1+8,\"\"))","v":"2022-07-04"},{"$f":"IF(DAY(JúlVas1)=1,IF(AND(YEAR(JúlVas1+2)=NaptáriÉv,MONTH(JúlVas1+2)=7),JúlVas1+2,\"\"),IF(AND(YEAR(JúlVas1+9)=NaptáriÉv,MONTH(JúlVas1+9)=7),JúlVas1+9,\"\"))","v":"2022-07-05"},{"$f":"IF(DAY(JúlVas1)=1,IF(AND(YEAR(JúlVas1+3)=NaptáriÉv,MONTH(JúlVas1+3)=7),JúlVas1+3,\"\"),IF(AND(YEAR(JúlVas1+10)=NaptáriÉv,MONTH(JúlVas1+10)=7),JúlVas1+10,\"\"))","v":"2022-07-06"},{"$f":"IF(DAY(JúlVas1)=1,IF(AND(YEAR(JúlVas1+4)=NaptáriÉv,MONTH(JúlVas1+4)=7),JúlVas1+4,\"\"),IF(AND(YEAR(JúlVas1+11)=NaptáriÉv,MONTH(JúlVas1+11)=7),JúlVas1+11,\"\"))","v":"2022-07-07"},{"$f":"IF(DAY(JúlVas1)=1,IF(AND(YEAR(JúlVas1+5)=NaptáriÉv,MONTH(JúlVas1+5)=7),JúlVas1+5,\"\"),IF(AND(YEAR(JúlVas1+12)=NaptáriÉv,MONTH(JúlVas1+12)=7),JúlVas1+12,\"\"))","v":"2022-07-08"},{"$f":"IF(DAY(JúlVas1)=1,IF(AND(YEAR(JúlVas1+6)=NaptáriÉv,MONTH(JúlVas1+6)=7),JúlVas1+6,\"\"),IF(AND(YEAR(JúlVas1+13)=NaptáriÉv,MONTH(JúlVas1+13)=7),JúlVas1+13,\"\"))","v":"2022-07-09"},{"$f":"IF(DAY(JúlVas1)=1,IF(AND(YEAR(JúlVas1+7)=NaptáriÉv,MONTH(JúlVas1+7)=7),JúlVas1+7,\"\"),IF(AND(YEAR(JúlVas1+14)=NaptáriÉv,MONTH(JúlVas1+14)=7),JúlVas1+14,\"\"))","v":"2022-07-10"},null,{"$f":"IF(DAY(AugVas1)=1,IF(AND(YEAR(AugVas1+1)=NaptáriÉv,MONTH(AugVas1+1)=8),AugVas1+1,\"\"),IF(AND(YEAR(AugVas1+8)=NaptáriÉv,MONTH(AugVas1+8)=8),AugVas1+8,\"\"))","v":"2022-08-08"},{"$f":"IF(DAY(AugVas1)=1,IF(AND(YEAR(AugVas1+2)=NaptáriÉv,MONTH(AugVas1+2)=8),AugVas1+2,\"\"),IF(AND(YEAR(AugVas1+9)=NaptáriÉv,MONTH(AugVas1+9)=8),AugVas1+9,\"\"))","v":"2022-08-09"},{"$f":"IF(DAY(AugVas1)=1,IF(AND(YEAR(AugVas1+3)=NaptáriÉv,MONTH(AugVas1+3)=8),AugVas1+3,\"\"),IF(AND(YEAR(AugVas1+10)=NaptáriÉv,MONTH(AugVas1+10)=8),AugVas1+10,\"\"))","v":"2022-08-10"},{"$f":"IF(DAY(AugVas1)=1,IF(AND(YEAR(AugVas1+4)=NaptáriÉv,MONTH(AugVas1+4)=8),AugVas1+4,\"\"),IF(AND(YEAR(AugVas1+11)=NaptáriÉv,MONTH(AugVas1+11)=8),AugVas1+11,\"\"))","v":"2022-08-11"},{"$f":"IF(DAY(AugVas1)=1,IF(AND(YEAR(AugVas1+5)=NaptáriÉv,MONTH(AugVas1+5)=8),AugVas1+5,\"\"),IF(AND(YEAR(AugVas1+12)=NaptáriÉv,MONTH(AugVas1+12)=8),AugVas1+12,\"\"))","v":"2022-08-12"},{"$f":"IF(DAY(AugVas1)=1,IF(AND(YEAR(AugVas1+6)=NaptáriÉv,MONTH(AugVas1+6)=8),AugVas1+6,\"\"),IF(AND(YEAR(AugVas1+13)=NaptáriÉv,MONTH(AugVas1+13)=8),AugVas1+13,\"\"))","v":"2022-08-13"},{"$f":"IF(DAY(AugVas1)=1,IF(AND(YEAR(AugVas1+7)=NaptáriÉv,MONTH(AugVas1+7)=8),AugVas1+7,\"\"),IF(AND(YEAR(AugVas1+14)=NaptáriÉv,MONTH(AugVas1+14)=8),AugVas1+14,\"\"))","v":"2022-08-14"}]
[null,null,{"$f":"IF(DAY(JúlVas1)=1,IF(AND(YEAR(JúlVas1+8)=NaptáriÉv,MONTH(JúlVas1+8)=7),JúlVas1+8,\"\"),IF(AND(YEAR(JúlVas1+15)=NaptáriÉv,MONTH(JúlVas1+15)=7),JúlVas1+15,\"\"))","v":"2022-07-11"},{"$f":"IF(DAY(JúlVas1)=1,IF(AND(YEAR(JúlVas1+9)=NaptáriÉv,MONTH(JúlVas1+9)=7),JúlVas1+9,\"\"),IF(AND(YEAR(JúlVas1+16)=NaptáriÉv,MONTH(JúlVas1+16)=7),JúlVas1+16,\"\"))","v":"2022-07-12"},{"$f":"IF(DAY(JúlVas1)=1,IF(AND(YEAR(JúlVas1+10)=NaptáriÉv,MONTH(JúlVas1+10)=7),JúlVas1+10,\"\"),IF(AND(YEAR(JúlVas1+17)=NaptáriÉv,MONTH(JúlVas1+17)=7),JúlVas1+17,\"\"))","v":"2022-07-13"},{"$f":"IF(DAY(JúlVas1)=1,IF(AND(YEAR(JúlVas1+11)=NaptáriÉv,MONTH(JúlVas1+11)=7),JúlVas1+11,\"\"),IF(AND(YEAR(JúlVas1+18)=NaptáriÉv,MONTH(JúlVas1+18)=7),JúlVas1+18,\"\"))","v":"2022-07-14"},{"$f":"IF(DAY(JúlVas1)=1,IF(AND(YEAR(JúlVas1+12)=NaptáriÉv,MONTH(JúlVas1+12)=7),JúlVas1+12,\"\"),IF(AND(YEAR(JúlVas1+19)=NaptáriÉv,MONTH(JúlVas1+19)=7),JúlVas1+19,\"\"))","v":"2022-07-15"},{"$f":"IF(DAY(JúlVas1)=1,IF(AND(YEAR(JúlVas1+13)=NaptáriÉv,MONTH(JúlVas1+13)=7),JúlVas1+13,\"\"),IF(AND(YEAR(JúlVas1+20)=NaptáriÉv,MONTH(JúlVas1+20)=7),JúlVas1+20,\"\"))","v":"2022-07-16"},{"$f":"IF(DAY(JúlVas1)=1,IF(AND(YEAR(JúlVas1+14)=NaptáriÉv,MONTH(JúlVas1+14)=7),JúlVas1+14,\"\"),IF(AND(YEAR(JúlVas1+21)=NaptáriÉv,MONTH(JúlVas1+21)=7),JúlVas1+21,\"\"))","v":"2022-07-17"},null,{"$f":"IF(DAY(AugVas1)=1,IF(AND(YEAR(AugVas1+8)=NaptáriÉv,MONTH(AugVas1+8)=8),AugVas1+8,\"\"),IF(AND(YEAR(AugVas1+15)=NaptáriÉv,MONTH(AugVas1+15)=8),AugVas1+15,\"\"))","v":"2022-08-15"},{"$f":"IF(DAY(AugVas1)=1,IF(AND(YEAR(AugVas1+9)=NaptáriÉv,MONTH(AugVas1+9)=8),AugVas1+9,\"\"),IF(AND(YEAR(AugVas1+16)=NaptáriÉv,MONTH(AugVas1+16)=8),AugVas1+16,\"\"))","v":"2022-08-16"},{"$f":"IF(DAY(AugVas1)=1,IF(AND(YEAR(AugVas1+10)=NaptáriÉv,MONTH(AugVas1+10)=8),AugVas1+10,\"\"),IF(AND(YEAR(AugVas1+17)=NaptáriÉv,MONTH(AugVas1+17)=8),AugVas1+17,\"\"))","v":"2022-08-17"},{"$f":"IF(DAY(AugVas1)=1,IF(AND(YEAR(AugVas1+11)=NaptáriÉv,MONTH(AugVas1+11)=8),AugVas1+11,\"\"),IF(AND(YEAR(AugVas1+18)=NaptáriÉv,MONTH(AugVas1+18)=8),AugVas1+18,\"\"))","v":"2022-08-18"},{"$f":"IF(DAY(AugVas1)=1,IF(AND(YEAR(AugVas1+12)=NaptáriÉv,MONTH(AugVas1+12)=8),AugVas1+12,\"\"),IF(AND(YEAR(AugVas1+19)=NaptáriÉv,MONTH(AugVas1+19)=8),AugVas1+19,\"\"))","v":"2022-08-19"},{"$f":"IF(DAY(AugVas1)=1,IF(AND(YEAR(AugVas1+13)=NaptáriÉv,MONTH(AugVas1+13)=8),AugVas1+13,\"\"),IF(AND(YEAR(AugVas1+20)=NaptáriÉv,MONTH(AugVas1+20)=8),AugVas1+20,\"\"))","v":"2022-08-20"},{"$f":"IF(DAY(AugVas1)=1,IF(AND(YEAR(AugVas1+14)=NaptáriÉv,MONTH(AugVas1+14)=8),AugVas1+14,\"\"),IF(AND(YEAR(AugVas1+21)=NaptáriÉv,MONTH(AugVas1+21)=8),AugVas1+21,\"\"))","v":"2022-08-21"}]
[null,null,{"$f":"IF(DAY(JúlVas1)=1,IF(AND(YEAR(JúlVas1+15)=NaptáriÉv,MONTH(JúlVas1+15)=7),JúlVas1+15,\"\"),IF(AND(YEAR(JúlVas1+22)=NaptáriÉv,MONTH(JúlVas1+22)=7),JúlVas1+22,\"\"))","v":"2022-07-18"},{"$f":"IF(DAY(JúlVas1)=1,IF(AND(YEAR(JúlVas1+16)=NaptáriÉv,MONTH(JúlVas1+16)=7),JúlVas1+16,\"\"),IF(AND(YEAR(JúlVas1+23)=NaptáriÉv,MONTH(JúlVas1+23)=7),JúlVas1+23,\"\"))","v":"2022-07-19"},{"$f":"IF(DAY(JúlVas1)=1,IF(AND(YEAR(JúlVas1+17)=NaptáriÉv,MONTH(JúlVas1+17)=7),JúlVas1+17,\"\"),IF(AND(YEAR(JúlVas1+24)=NaptáriÉv,MONTH(JúlVas1+24)=7),JúlVas1+24,\"\"))","v":"2022-07-20"},{"$f":"IF(DAY(JúlVas1)=1,IF(AND(YEAR(JúlVas1+18)=NaptáriÉv,MONTH(JúlVas1+18)=7),JúlVas1+18,\"\"),IF(AND(YEAR(JúlVas1+25)=NaptáriÉv,MONTH(JúlVas1+25)=7),JúlVas1+25,\"\"))","v":"2022-07-21"},{"$f":"IF(DAY(JúlVas1)=1,IF(AND(YEAR(JúlVas1+19)=NaptáriÉv,MONTH(JúlVas1+19)=7),JúlVas1+19,\"\"),IF(AND(YEAR(JúlVas1+26)=NaptáriÉv,MONTH(JúlVas1+26)=7),JúlVas1+26,\"\"))","v":"2022-07-22"},{"$f":"IF(DAY(JúlVas1)=1,IF(AND(YEAR(JúlVas1+20)=NaptáriÉv,MONTH(JúlVas1+20)=7),JúlVas1+20,\"\"),IF(AND(YEAR(JúlVas1+27)=NaptáriÉv,MONTH(JúlVas1+27)=7),JúlVas1+27,\"\"))","v":"2022-07-23"},{"$f":"IF(DAY(JúlVas1)=1,IF(AND(YEAR(JúlVas1+21)=NaptáriÉv,MONTH(JúlVas1+21)=7),JúlVas1+21,\"\"),IF(AND(YEAR(JúlVas1+28)=NaptáriÉv,MONTH(JúlVas1+28)=7),JúlVas1+28,\"\"))","v":"2022-07-24"},null,{"$f":"IF(DAY(AugVas1)=1,IF(AND(YEAR(AugVas1+15)=NaptáriÉv,MONTH(AugVas1+15)=8),AugVas1+15,\"\"),IF(AND(YEAR(AugVas1+22)=NaptáriÉv,MONTH(AugVas1+22)=8),AugVas1+22,\"\"))","v":"2022-08-22"},{"$f":"IF(DAY(AugVas1)=1,IF(AND(YEAR(AugVas1+16)=NaptáriÉv,MONTH(AugVas1+16)=8),AugVas1+16,\"\"),IF(AND(YEAR(AugVas1+23)=NaptáriÉv,MONTH(AugVas1+23)=8),AugVas1+23,\"\"))","v":"2022-08-23"},{"$f":"IF(DAY(AugVas1)=1,IF(AND(YEAR(AugVas1+17)=NaptáriÉv,MONTH(AugVas1+17)=8),AugVas1+17,\"\"),IF(AND(YEAR(AugVas1+24)=NaptáriÉv,MONTH(AugVas1+24)=8),AugVas1+24,\"\"))","v":"2022-08-24"},{"$f":"IF(DAY(AugVas1)=1,IF(AND(YEAR(AugVas1+18)=NaptáriÉv,MONTH(AugVas1+18)=8),AugVas1+18,\"\"),IF(AND(YEAR(AugVas1+25)=NaptáriÉv,MONTH(AugVas1+25)=8),AugVas1+25,\"\"))","v":"2022-08-25"},{"$f":"IF(DAY(AugVas1)=1,IF(AND(YEAR(AugVas1+19)=NaptáriÉv,MONTH(AugVas1+19)=8),AugVas1+19,\"\"),IF(AND(YEAR(AugVas1+26)=NaptáriÉv,MONTH(AugVas1+26)=8),AugVas1+26,\"\"))","v":"2022-08-26"},{"$f":"IF(DAY(AugVas1)=1,IF(AND(YEAR(AugVas1+20)=NaptáriÉv,MONTH(AugVas1+20)=8),AugVas1+20,\"\"),IF(AND(YEAR(AugVas1+27)=NaptáriÉv,MONTH(AugVas1+27)=8),AugVas1+27,\"\"))","v":"2022-08-27"},{"$f":"IF(DAY(AugVas1)=1,IF(AND(YEAR(AugVas1+21)=NaptáriÉv,MONTH(AugVas1+21)=8),AugVas1+21,\"\"),IF(AND(YEAR(AugVas1+28)=NaptáriÉv,MONTH(AugVas1+28)=8),AugVas1+28,\"\"))","v":"2022-08-28"}]
[null,null,{"$f":"IF(DAY(JúlVas1)=1,IF(AND(YEAR(JúlVas1+22)=NaptáriÉv,MONTH(JúlVas1+22)=7),JúlVas1+22,\"\"),IF(AND(YEAR(JúlVas1+29)=NaptáriÉv,MONTH(JúlVas1+29)=7),JúlVas1+29,\"\"))","v":"2022-07-25"},{"$f":"IF(DAY(JúlVas1)=1,IF(AND(YEAR(JúlVas1+23)=NaptáriÉv,MONTH(JúlVas1+23)=7),JúlVas1+23,\"\"),IF(AND(YEAR(JúlVas1+30)=NaptáriÉv,MONTH(JúlVas1+30)=7),JúlVas1+30,\"\"))","v":"2022-07-26"},{"$f":"IF(DAY(JúlVas1)=1,IF(AND(YEAR(JúlVas1+24)=NaptáriÉv,MONTH(JúlVas1+24)=7),JúlVas1+24,\"\"),IF(AND(YEAR(JúlVas1+31)=NaptáriÉv,MONTH(JúlVas1+31)=7),JúlVas1+31,\"\"))","v":"2022-07-27"},{"$f":"IF(DAY(JúlVas1)=1,IF(AND(YEAR(JúlVas1+25)=NaptáriÉv,MONTH(JúlVas1+25)=7),JúlVas1+25,\"\"),IF(AND(YEAR(JúlVas1+32)=NaptáriÉv,MONTH(JúlVas1+32)=7),JúlVas1+32,\"\"))","v":"2022-07-28"},{"$f":"IF(DAY(JúlVas1)=1,IF(AND(YEAR(JúlVas1+26)=NaptáriÉv,MONTH(JúlVas1+26)=7),JúlVas1+26,\"\"),IF(AND(YEAR(JúlVas1+33)=NaptáriÉv,MONTH(JúlVas1+33)=7),JúlVas1+33,\"\"))","v":"2022-07-29"},{"$f":"IF(DAY(JúlVas1)=1,IF(AND(YEAR(JúlVas1+27)=NaptáriÉv,MONTH(JúlVas1+27)=7),JúlVas1+27,\"\"),IF(AND(YEAR(JúlVas1+34)=NaptáriÉv,MONTH(JúlVas1+34)=7),JúlVas1+34,\"\"))","v":"2022-07-30"},{"$f":"IF(DAY(JúlVas1)=1,IF(AND(YEAR(JúlVas1+28)=NaptáriÉv,MONTH(JúlVas1+28)=7),JúlVas1+28,\"\"),IF(AND(YEAR(JúlVas1+35)=NaptáriÉv,MONTH(JúlVas1+35)=7),JúlVas1+35,\"\"))","v":"2022-07-31"},null,{"$f":"IF(DAY(AugVas1)=1,IF(AND(YEAR(AugVas1+22)=NaptáriÉv,MONTH(AugVas1+22)=8),AugVas1+22,\"\"),IF(AND(YEAR(AugVas1+29)=NaptáriÉv,MONTH(AugVas1+29)=8),AugVas1+29,\"\"))","v":"2022-08-29"},{"$f":"IF(DAY(AugVas1)=1,IF(AND(YEAR(AugVas1+23)=NaptáriÉv,MONTH(AugVas1+23)=8),AugVas1+23,\"\"),IF(AND(YEAR(AugVas1+30)=NaptáriÉv,MONTH(AugVas1+30)=8),AugVas1+30,\"\"))","v":"2022-08-30"},{"$f":"IF(DAY(AugVas1)=1,IF(AND(YEAR(AugVas1+24)=NaptáriÉv,MONTH(AugVas1+24)=8),AugVas1+24,\"\"),IF(AND(YEAR(AugVas1+31)=NaptáriÉv,MONTH(AugVas1+31)=8),AugVas1+31,\"\"))","v":"2022-08-31"},{"$f":"IF(DAY(AugVas1)=1,IF(AND(YEAR(AugVas1+25)=NaptáriÉv,MONTH(AugVas1+25)=8),AugVas1+25,\"\"),IF(AND(YEAR(AugVas1+32)=NaptáriÉv,MONTH(AugVas1+32)=8),AugVas1+32,\"\"))","v":""},{"$f":"IF(DAY(AugVas1)=1,IF(AND(YEAR(AugVas1+26)=NaptáriÉv,MONTH(AugVas1+26)=8),AugVas1+26,\"\"),IF(AND(YEAR(AugVas1+33)=NaptáriÉv,MONTH(AugVas1+33)=8),AugVas1+33,\"\"))","v":""},{"$f":"IF(DAY(AugVas1)=1,IF(AND(YEAR(AugVas1+27)=NaptáriÉv,MONTH(AugVas1+27)=8),AugVas1+27,\"\"),IF(AND(YEAR(AugVas1+34)=NaptáriÉv,MONTH(AugVas1+34)=8),AugVas1+34,\"\"))","v":""},{"$f":"IF(DAY(AugVas1)=1,IF(AND(YEAR(AugVas1+28)=NaptáriÉv,MONTH(AugVas1+28)=8),AugVas1+28,\"\"),IF(AND(YEAR(AugVas1+35)=NaptáriÉv,MONTH(AugVas1+35)=8),AugVas1+35,\"\"))","v":""}]
[null,null,{"$f":"IF(DAY(JúlVas1)=1,IF(AND(YEAR(JúlVas1+29)=NaptáriÉv,MONTH(JúlVas1+29)=7),JúlVas1+29,\"\"),IF(AND(YEAR(JúlVas1+36)=NaptáriÉv,MONTH(JúlVas1+36)=7),JúlVas1+36,\"\"))","v":""},{"$f":"IF(DAY(JúlVas1)=1,IF(AND(YEAR(JúlVas1+30)=NaptáriÉv,MONTH(JúlVas1+30)=7),JúlVas1+30,\"\"),IF(AND(YEAR(JúlVas1+37)=NaptáriÉv,MONTH(JúlVas1+37)=7),JúlVas1+37,\"\"))","v":""},{"$f":"IF(DAY(JúlVas1)=1,IF(AND(YEAR(JúlVas1+31)=NaptáriÉv,MONTH(JúlVas1+31)=7),JúlVas1+31,\"\"),IF(AND(YEAR(JúlVas1+38)=NaptáriÉv,MONTH(JúlVas1+38)=7),JúlVas1+38,\"\"))","v":""},{"$f":"IF(DAY(JúlVas1)=1,IF(AND(YEAR(JúlVas1+32)=NaptáriÉv,MONTH(JúlVas1+32)=7),JúlVas1+32,\"\"),IF(AND(YEAR(JúlVas1+39)=NaptáriÉv,MONTH(JúlVas1+39)=7),JúlVas1+39,\"\"))","v":""},{"$f":"IF(DAY(JúlVas1)=1,IF(AND(YEAR(JúlVas1+33)=NaptáriÉv,MONTH(JúlVas1+33)=7),JúlVas1+33,\"\"),IF(AND(YEAR(JúlVas1+40)=NaptáriÉv,MONTH(JúlVas1+40)=7),JúlVas1+40,\"\"))","v":""},{"$f":"IF(DAY(JúlVas1)=1,IF(AND(YEAR(JúlVas1+34)=NaptáriÉv,MONTH(JúlVas1+34)=7),JúlVas1+34,\"\"),IF(AND(YEAR(JúlVas1+41)=NaptáriÉv,MONTH(JúlVas1+41)=7),JúlVas1+41,\"\"))","v":""},{"$f":"IF(DAY(JúlVas1)=1,IF(AND(YEAR(JúlVas1+35)=NaptáriÉv,MONTH(JúlVas1+35)=7),JúlVas1+35,\"\"),IF(AND(YEAR(JúlVas1+42)=NaptáriÉv,MONTH(JúlVas1+42)=7),JúlVas1+42,\"\"))","v":""},null,{"$f":"IF(DAY(AugVas1)=1,IF(AND(YEAR(AugVas1+29)=NaptáriÉv,MONTH(AugVas1+29)=8),AugVas1+29,\"\"),IF(AND(YEAR(AugVas1+36)=NaptáriÉv,MONTH(AugVas1+36)=8),AugVas1+36,\"\"))","v":""},{"$f":"IF(DAY(AugVas1)=1,IF(AND(YEAR(AugVas1+30)=NaptáriÉv,MONTH(AugVas1+30)=8),AugVas1+30,\"\"),IF(AND(YEAR(AugVas1+37)=NaptáriÉv,MONTH(AugVas1+37)=8),AugVas1+37,\"\"))","v":""},{"$f":"IF(DAY(AugVas1)=1,IF(AND(YEAR(AugVas1+31)=NaptáriÉv,MONTH(AugVas1+31)=8),AugVas1+31,\"\"),IF(AND(YEAR(AugVas1+38)=NaptáriÉv,MONTH(AugVas1+38)=8),AugVas1+38,\"\"))","v":""},{"$f":"IF(DAY(AugVas1)=1,IF(AND(YEAR(AugVas1+32)=NaptáriÉv,MONTH(AugVas1+32)=8),AugVas1+32,\"\"),IF(AND(YEAR(AugVas1+39)=NaptáriÉv,MONTH(AugVas1+39)=8),AugVas1+39,\"\"))","v":""},{"$f":"IF(DAY(AugVas1)=1,IF(AND(YEAR(AugVas1+33)=NaptáriÉv,MONTH(AugVas1+33)=8),AugVas1+33,\"\"),IF(AND(YEAR(AugVas1+40)=NaptáriÉv,MONTH(AugVas1+40)=8),AugVas1+40,\"\"))","v":""},{"$f":"IF(DAY(AugVas1)=1,IF(AND(YEAR(AugVas1+34)=NaptáriÉv,MONTH(AugVas1+34)=8),AugVas1+34,\"\"),IF(AND(YEAR(AugVas1+41)=NaptáriÉv,MONTH(AugVas1+41)=8),AugVas1+41,\"\"))","v":""},{"$f":"IF(DAY(AugVas1)=1,IF(AND(YEAR(AugVas1+35)=NaptáriÉv,MONTH(AugVas1+35)=8),AugVas1+35,\"\"),IF(AND(YEAR(AugVas1+42)=NaptáriÉv,MONTH(AugVas1+42)=8),AugVas1+42,\"\"))","v":""}]
[]
["A Szeptember címke a C39, az Október címke pedig a K39 cellákban található",null,"SZEPTEMBER",{"$nulls":7},"OKTÓBER"]
["A Szeptember hónap naptárának táblázata a C40–I46, az Október hónap naptárának táblázata a K40–Q46 cellákban található. A következő utasítás az A44 cellában található",null,"H","K","SZE","CS","P","SZO","V",null,"H","K","SZE","CS","P","SZO","V"]
[null,null,{"$f":"IF(DAY(SzeptVas1)=1,\"\",IF(AND(YEAR(SzeptVas1+1)=NaptáriÉv,MONTH(SzeptVas1+1)=9),SzeptVas1+1,\"\"))","v":""},{"$f":"IF(DAY(SzeptVas1)=1,\"\",IF(AND(YEAR(SzeptVas1+2)=NaptáriÉv,MONTH(SzeptVas1+2)=9),SzeptVas1+2,\"\"))","v":""},{"$f":"IF(DAY(SzeptVas1)=1,\"\",IF(AND(YEAR(SzeptVas1+3)=NaptáriÉv,MONTH(SzeptVas1+3)=9),SzeptVas1+3,\"\"))","v":""},{"$f":"IF(DAY(SzeptVas1)=1,\"\",IF(AND(YEAR(SzeptVas1+4)=NaptáriÉv,MONTH(SzeptVas1+4)=9),SzeptVas1+4,\"\"))","v":"2022-09-01"},{"$f":"IF(DAY(SzeptVas1)=1,\"\",IF(AND(YEAR(SzeptVas1+5)=NaptáriÉv,MONTH(SzeptVas1+5)=9),SzeptVas1+5,\"\"))","v":"2022-09-02"},{"$f":"IF(DAY(SzeptVas1)=1,\"\",IF(AND(YEAR(SzeptVas1+6)=NaptáriÉv,MONTH(SzeptVas1+6)=9),SzeptVas1+6,\"\"))","v":"2022-09-03"},{"$f":"IF(DAY(SzeptVas1)=1,IF(AND(YEAR(SzeptVas1)=NaptáriÉv,MONTH(SzeptVas1)=9),SzeptVas1,\"\"),IF(AND(YEAR(SzeptVas1+7)=NaptáriÉv,MONTH(SzeptVas1+7)=9),SzeptVas1+7,\"\"))","v":"2022-09-04"},null,{"$f":"IF(DAY(OktVas1)=1,\"\",IF(AND(YEAR(OktVas1+1)=NaptáriÉv,MONTH(OktVas1+1)=10),OktVas1+1,\"\"))","v":""},{"$f":"IF(DAY(OktVas1)=1,\"\",IF(AND(YEAR(OktVas1+2)=NaptáriÉv,MONTH(OktVas1+2)=10),OktVas1+2,\"\"))","v":""},{"$f":"IF(DAY(OktVas1)=1,\"\",IF(AND(YEAR(OktVas1+3)=NaptáriÉv,MONTH(OktVas1+3)=10),OktVas1+3,\"\"))","v":""},{"$f":"IF(DAY(OktVas1)=1,\"\",IF(AND(YEAR(OktVas1+4)=NaptáriÉv,MONTH(OktVas1+4)=10),OktVas1+4,\"\"))","v":""},{"$f":"IF(DAY(OktVas1)=1,\"\",IF(AND(YEAR(OktVas1+5)=NaptáriÉv,MONTH(OktVas1+5)=10),OktVas1+5,\"\"))","v":""},{"$f":"IF(DAY(OktVas1)=1,\"\",IF(AND(YEAR(OktVas1+6)=NaptáriÉv,MONTH(OktVas1+6)=10),OktVas1+6,\"\"))","v":"2022-10-01"},{"$f":"IF(DAY(OktVas1)=1,IF(AND(YEAR(OktVas1)=NaptáriÉv,MONTH(OktVas1)=10),OktVas1,\"\"),IF(AND(YEAR(OktVas1+7)=NaptáriÉv,MONTH(OktVas1+7)=10),OktVas1+7,\"\"))","v":"2022-10-02"}]
[null,null,{"$f":"IF(DAY(SzeptVas1)=1,IF(AND(YEAR(SzeptVas1+1)=NaptáriÉv,MONTH(SzeptVas1+1)=9),SzeptVas1+1,\"\"),IF(AND(YEAR(SzeptVas1+8)=NaptáriÉv,MONTH(SzeptVas1+8)=9),SzeptVas1+8,\"\"))","v":"2022-09-05"},{"$f":"IF(DAY(SzeptVas1)=1,IF(AND(YEAR(SzeptVas1+2)=NaptáriÉv,MONTH(SzeptVas1+2)=9),SzeptVas1+2,\"\"),IF(AND(YEAR(SzeptVas1+9)=NaptáriÉv,MONTH(SzeptVas1+9)=9),SzeptVas1+9,\"\"))","v":"2022-09-06"},{"$f":"IF(DAY(SzeptVas1)=1,IF(AND(YEAR(SzeptVas1+3)=NaptáriÉv,MONTH(SzeptVas1+3)=9),SzeptVas1+3,\"\"),IF(AND(YEAR(SzeptVas1+10)=NaptáriÉv,MONTH(SzeptVas1+10)=9),SzeptVas1+10,\"\"))","v":"2022-09-07"},{"$f":"IF(DAY(SzeptVas1)=1,IF(AND(YEAR(SzeptVas1+4)=NaptáriÉv,MONTH(SzeptVas1+4)=9),SzeptVas1+4,\"\"),IF(AND(YEAR(SzeptVas1+11)=NaptáriÉv,MONTH(SzeptVas1+11)=9),SzeptVas1+11,\"\"))","v":"2022-09-08"},{"$f":"IF(DAY(SzeptVas1)=1,IF(AND(YEAR(SzeptVas1+5)=NaptáriÉv,MONTH(SzeptVas1+5)=9),SzeptVas1+5,\"\"),IF(AND(YEAR(SzeptVas1+12)=NaptáriÉv,MONTH(SzeptVas1+12)=9),SzeptVas1+12,\"\"))","v":"2022-09-09"},{"$f":"IF(DAY(SzeptVas1)=1,IF(AND(YEAR(SzeptVas1+6)=NaptáriÉv,MONTH(SzeptVas1+6)=9),SzeptVas1+6,\"\"),IF(AND(YEAR(SzeptVas1+13)=NaptáriÉv,MONTH(SzeptVas1+13)=9),SzeptVas1+13,\"\"))","v":"2022-09-10"},{"$f":"IF(DAY(SzeptVas1)=1,IF(AND(YEAR(SzeptVas1+7)=NaptáriÉv,MONTH(SzeptVas1+7)=9),SzeptVas1+7,\"\"),IF(AND(YEAR(SzeptVas1+14)=NaptáriÉv,MONTH(SzeptVas1+14)=9),SzeptVas1+14,\"\"))","v":"2022-09-11"},null,{"$f":"IF(DAY(OktVas1)=1,IF(AND(YEAR(OktVas1+1)=NaptáriÉv,MONTH(OktVas1+1)=10),OktVas1+1,\"\"),IF(AND(YEAR(OktVas1+8)=NaptáriÉv,MONTH(OktVas1+8)=10),OktVas1+8,\"\"))","v":"2022-10-03"},{"$f":"IF(DAY(OktVas1)=1,IF(AND(YEAR(OktVas1+2)=NaptáriÉv,MONTH(OktVas1+2)=10),OktVas1+2,\"\"),IF(AND(YEAR(OktVas1+9)=NaptáriÉv,MONTH(OktVas1+9)=10),OktVas1+9,\"\"))","v":"2022-10-04"},{"$f":"IF(DAY(OktVas1)=1,IF(AND(YEAR(OktVas1+3)=NaptáriÉv,MONTH(OktVas1+3)=10),OktVas1+3,\"\"),IF(AND(YEAR(OktVas1+10)=NaptáriÉv,MONTH(OktVas1+10)=10),OktVas1+10,\"\"))","v":"2022-10-05"},{"$f":"IF(DAY(OktVas1)=1,IF(AND(YEAR(OktVas1+4)=NaptáriÉv,MONTH(OktVas1+4)=10),OktVas1+4,\"\"),IF(AND(YEAR(OktVas1+11)=NaptáriÉv,MONTH(OktVas1+11)=10),OktVas1+11,\"\"))","v":"2022-10-06"},{"$f":"IF(DAY(OktVas1)=1,IF(AND(YEAR(OktVas1+5)=NaptáriÉv,MONTH(OktVas1+5)=10),OktVas1+5,\"\"),IF(AND(YEAR(OktVas1+12)=NaptáriÉv,MONTH(OktVas1+12)=10),OktVas1+12,\"\"))","v":"2022-10-07"},{"$f":"IF(DAY(OktVas1)=1,IF(AND(YEAR(OktVas1+6)=NaptáriÉv,MONTH(OktVas1+6)=10),OktVas1+6,\"\"),IF(AND(YEAR(OktVas1+13)=NaptáriÉv,MONTH(OktVas1+13)=10),OktVas1+13,\"\"))","v":"2022-10-08"},{"$f":"IF(DAY(OktVas1)=1,IF(AND(YEAR(OktVas1+7)=NaptáriÉv,MONTH(OktVas1+7)=10),OktVas1+7,\"\"),IF(AND(YEAR(OktVas1+14)=NaptáriÉv,MONTH(OktVas1+14)=10),OktVas1+14,\"\"))","v":"2022-10-09"}]
[null,null,{"$f":"IF(DAY(SzeptVas1)=1,IF(AND(YEAR(SzeptVas1+8)=NaptáriÉv,MONTH(SzeptVas1+8)=9),SzeptVas1+8,\"\"),IF(AND(YEAR(SzeptVas1+15)=NaptáriÉv,MONTH(SzeptVas1+15)=9),SzeptVas1+15,\"\"))","v":"2022-09-12"},{"$f":"IF(DAY(SzeptVas1)=1,IF(AND(YEAR(SzeptVas1+9)=NaptáriÉv,MONTH(SzeptVas1+9)=9),SzeptVas1+9,\"\"),IF(AND(YEAR(SzeptVas1+16)=NaptáriÉv,MONTH(SzeptVas1+16)=9),SzeptVas1+16,\"\"))","v":"2022-09-13"},{"$f":"IF(DAY(SzeptVas1)=1,IF(AND(YEAR(SzeptVas1+10)=NaptáriÉv,MONTH(SzeptVas1+10)=9),SzeptVas1+10,\"\"),IF(AND(YEAR(SzeptVas1+17)=NaptáriÉv,MONTH(SzeptVas1+17)=9),SzeptVas1+17,\"\"))","v":"2022-09-14"},{"$f":"IF(DAY(SzeptVas1)=1,IF(AND(YEAR(SzeptVas1+11)=NaptáriÉv,MONTH(SzeptVas1+11)=9),SzeptVas1+11,\"\"),IF(AND(YEAR(SzeptVas1+18)=NaptáriÉv,MONTH(SzeptVas1+18)=9),SzeptVas1+18,\"\"))","v":"2022-09-15"},{"$f":"IF(DAY(SzeptVas1)=1,IF(AND(YEAR(SzeptVas1+12)=NaptáriÉv,MONTH(SzeptVas1+12)=9),SzeptVas1+12,\"\"),IF(AND(YEAR(SzeptVas1+19)=NaptáriÉv,MONTH(SzeptVas1+19)=9),SzeptVas1+19,\"\"))","v":"2022-09-16"},{"$f":"IF(DAY(SzeptVas1)=1,IF(AND(YEAR(SzeptVas1+13)=NaptáriÉv,MONTH(SzeptVas1+13)=9),SzeptVas1+13,\"\"),IF(AND(YEAR(SzeptVas1+20)=NaptáriÉv,MONTH(SzeptVas1+20)=9),SzeptVas1+20,\"\"))","v":"2022-09-17"},{"$f":"IF(DAY(SzeptVas1)=1,IF(AND(YEAR(SzeptVas1+14)=NaptáriÉv,MONTH(SzeptVas1+14)=9),SzeptVas1+14,\"\"),IF(AND(YEAR(SzeptVas1+21)=NaptáriÉv,MONTH(SzeptVas1+21)=9),SzeptVas1+21,\"\"))","v":"2022-09-18"},null,{"$f":"IF(DAY(OktVas1)=1,IF(AND(YEAR(OktVas1+8)=NaptáriÉv,MONTH(OktVas1+8)=10),OktVas1+8,\"\"),IF(AND(YEAR(OktVas1+15)=NaptáriÉv,MONTH(OktVas1+15)=10),OktVas1+15,\"\"))","v":"2022-10-10"},{"$f":"IF(DAY(OktVas1)=1,IF(AND(YEAR(OktVas1+9)=NaptáriÉv,MONTH(OktVas1+9)=10),OktVas1+9,\"\"),IF(AND(YEAR(OktVas1+16)=NaptáriÉv,MONTH(OktVas1+16)=10),OktVas1+16,\"\"))","v":"2022-10-11"},{"$f":"IF(DAY(OktVas1)=1,IF(AND(YEAR(OktVas1+10)=NaptáriÉv,MONTH(OktVas1+10)=10),OktVas1+10,\"\"),IF(AND(YEAR(OktVas1+17)=NaptáriÉv,MONTH(OktVas1+17)=10),OktVas1+17,\"\"))","v":"2022-10-12"},{"$f":"IF(DAY(OktVas1)=1,IF(AND(YEAR(OktVas1+11)=NaptáriÉv,MONTH(OktVas1+11)=10),OktVas1+11,\"\"),IF(AND(YEAR(OktVas1+18)=NaptáriÉv,MONTH(OktVas1+18)=10),OktVas1+18,\"\"))","v":"2022-10-13"},{"$f":"IF(DAY(OktVas1)=1,IF(AND(YEAR(OktVas1+12)=NaptáriÉv,MONTH(OktVas1+12)=10),OktVas1+12,\"\"),IF(AND(YEAR(OktVas1+19)=NaptáriÉv,MONTH(OktVas1+19)=10),OktVas1+19,\"\"))","v":"2022-10-14"},{"$f":"IF(DAY(OktVas1)=1,IF(AND(YEAR(OktVas1+13)=NaptáriÉv,MONTH(OktVas1+13)=10),OktVas1+13,\"\"),IF(AND(YEAR(OktVas1+20)=NaptáriÉv,MONTH(OktVas1+20)=10),OktVas1+20,\"\"))","v":"2022-10-15"},{"$f":"IF(DAY(OktVas1)=1,IF(AND(YEAR(OktVas1+14)=NaptáriÉv,MONTH(OktVas1+14)=10),OktVas1+14,\"\"),IF(AND(YEAR(OktVas1+21)=NaptáriÉv,MONTH(OktVas1+21)=10),OktVas1+21,\"\"))","v":"2022-10-16"}]
["Az U44 cellában adhatja meg az utcanevet és a házszámot",null,{"$f":"IF(DAY(SzeptVas1)=1,IF(AND(YEAR(SzeptVas1+15)=NaptáriÉv,MONTH(SzeptVas1+15)=9),SzeptVas1+15,\"\"),IF(AND(YEAR(SzeptVas1+22)=NaptáriÉv,MONTH(SzeptVas1+22)=9),SzeptVas1+22,\"\"))","v":"2022-09-19"},{"$f":"IF(DAY(SzeptVas1)=1,IF(AND(YEAR(SzeptVas1+16)=NaptáriÉv,MONTH(SzeptVas1+16)=9),SzeptVas1+16,\"\"),IF(AND(YEAR(SzeptVas1+23)=NaptáriÉv,MONTH(SzeptVas1+23)=9),SzeptVas1+23,\"\"))","v":"2022-09-20"},{"$f":"IF(DAY(SzeptVas1)=1,IF(AND(YEAR(SzeptVas1+17)=NaptáriÉv,MONTH(SzeptVas1+17)=9),SzeptVas1+17,\"\"),IF(AND(YEAR(SzeptVas1+24)=NaptáriÉv,MONTH(SzeptVas1+24)=9),SzeptVas1+24,\"\"))","v":"2022-09-21"},{"$f":"IF(DAY(SzeptVas1)=1,IF(AND(YEAR(SzeptVas1+18)=NaptáriÉv,MONTH(SzeptVas1+18)=9),SzeptVas1+18,\"\"),IF(AND(YEAR(SzeptVas1+25)=NaptáriÉv,MONTH(SzeptVas1+25)=9),SzeptVas1+25,\"\"))","v":"2022-09-22"},{"$f":"IF(DAY(SzeptVas1)=1,IF(AND(YEAR(SzeptVas1+19)=NaptáriÉv,MONTH(SzeptVas1+19)=9),SzeptVas1+19,\"\"),IF(AND(YEAR(SzeptVas1+26)=NaptáriÉv,MONTH(SzeptVas1+26)=9),SzeptVas1+26,\"\"))","v":"2022-09-23"},{"$f":"IF(DAY(SzeptVas1)=1,IF(AND(YEAR(SzeptVas1+20)=NaptáriÉv,MONTH(SzeptVas1+20)=9),SzeptVas1+20,\"\"),IF(AND(YEAR(SzeptVas1+27)=NaptáriÉv,MONTH(SzeptVas1+27)=9),SzeptVas1+27,\"\"))","v":"2022-09-24"},{"$f":"IF(DAY(SzeptVas1)=1,IF(AND(YEAR(SzeptVas1+21)=NaptáriÉv,MONTH(SzeptVas1+21)=9),SzeptVas1+21,\"\"),IF(AND(YEAR(SzeptVas1+28)=NaptáriÉv,MONTH(SzeptVas1+28)=9),SzeptVas1+28,\"\"))","v":"2022-09-25"},null,{"$f":"IF(DAY(OktVas1)=1,IF(AND(YEAR(OktVas1+15)=NaptáriÉv,MONTH(OktVas1+15)=10),OktVas1+15,\"\"),IF(AND(YEAR(OktVas1+22)=NaptáriÉv,MONTH(OktVas1+22)=10),OktVas1+22,\"\"))","v":"2022-10-17"},{"$f":"IF(DAY(OktVas1)=1,IF(AND(YEAR(OktVas1+16)=NaptáriÉv,MONTH(OktVas1+16)=10),OktVas1+16,\"\"),IF(AND(YEAR(OktVas1+23)=NaptáriÉv,MONTH(OktVas1+23)=10),OktVas1+23,\"\"))","v":"2022-10-18"},{"$f":"IF(DAY(OktVas1)=1,IF(AND(YEAR(OktVas1+17)=NaptáriÉv,MONTH(OktVas1+17)=10),OktVas1+17,\"\"),IF(AND(YEAR(OktVas1+24)=NaptáriÉv,MONTH(OktVas1+24)=10),OktVas1+24,\"\"))","v":"2022-10-19"},{"$f":"IF(DAY(OktVas1)=1,IF(AND(YEAR(OktVas1+18)=NaptáriÉv,MONTH(OktVas1+18)=10),OktVas1+18,\"\"),IF(AND(YEAR(OktVas1+25)=NaptáriÉv,MONTH(OktVas1+25)=10),OktVas1+25,\"\"))","v":"2022-10-20"},{"$f":"IF(DAY(OktVas1)=1,IF(AND(YEAR(OktVas1+19)=NaptáriÉv,MONTH(OktVas1+19)=10),OktVas1+19,\"\"),IF(AND(YEAR(OktVas1+26)=NaptáriÉv,MONTH(OktVas1+26)=10),OktVas1+26,\"\"))","v":"2022-10-21"},{"$f":"IF(DAY(OktVas1)=1,IF(AND(YEAR(OktVas1+20)=NaptáriÉv,MONTH(OktVas1+20)=10),OktVas1+20,\"\"),IF(AND(YEAR(OktVas1+27)=NaptáriÉv,MONTH(OktVas1+27)=10),OktVas1+27,\"\"))","v":"2022-10-22"},{"$f":"IF(DAY(OktVas1)=1,IF(AND(YEAR(OktVas1+21)=NaptáriÉv,MONTH(OktVas1+21)=10),OktVas1+21,\"\"),IF(AND(YEAR(OktVas1+28)=NaptáriÉv,MONTH(OktVas1+28)=10),OktVas1+28,\"\"))","v":"2022-10-23"},{"$nulls":3},"Utca, házszám"]
["Az U45 cellában adhatja meg a települést és az irányítószámot. A következő utasítás az A47 cellában található",null,{"$f":"IF(DAY(SzeptVas1)=1,IF(AND(YEAR(SzeptVas1+22)=NaptáriÉv,MONTH(SzeptVas1+22)=9),SzeptVas1+22,\"\"),IF(AND(YEAR(SzeptVas1+29)=NaptáriÉv,MONTH(SzeptVas1+29)=9),SzeptVas1+29,\"\"))","v":"2022-09-26"},{"$f":"IF(DAY(SzeptVas1)=1,IF(AND(YEAR(SzeptVas1+23)=NaptáriÉv,MONTH(SzeptVas1+23)=9),SzeptVas1+23,\"\"),IF(AND(YEAR(SzeptVas1+30)=NaptáriÉv,MONTH(SzeptVas1+30)=9),SzeptVas1+30,\"\"))","v":"2022-09-27"},{"$f":"IF(DAY(SzeptVas1)=1,IF(AND(YEAR(SzeptVas1+24)=NaptáriÉv,MONTH(SzeptVas1+24)=9),SzeptVas1+24,\"\"),IF(AND(YEAR(SzeptVas1+31)=NaptáriÉv,MONTH(SzeptVas1+31)=9),SzeptVas1+31,\"\"))","v":"2022-09-28"},{"$f":"IF(DAY(SzeptVas1)=1,IF(AND(YEAR(SzeptVas1+25)=NaptáriÉv,MONTH(SzeptVas1+25)=9),SzeptVas1+25,\"\"),IF(AND(YEAR(SzeptVas1+32)=NaptáriÉv,MONTH(SzeptVas1+32)=9),SzeptVas1+32,\"\"))","v":"2022-09-29"},{"$f":"IF(DAY(SzeptVas1)=1,IF(AND(YEAR(SzeptVas1+26)=NaptáriÉv,MONTH(SzeptVas1+26)=9),SzeptVas1+26,\"\"),IF(AND(YEAR(SzeptVas1+33)=NaptáriÉv,MONTH(SzeptVas1+33)=9),SzeptVas1+33,\"\"))","v":"2022-09-30"},{"$f":"IF(DAY(SzeptVas1)=1,IF(AND(YEAR(SzeptVas1+27)=NaptáriÉv,MONTH(SzeptVas1+27)=9),SzeptVas1+27,\"\"),IF(AND(YEAR(SzeptVas1+34)=NaptáriÉv,MONTH(SzeptVas1+34)=9),SzeptVas1+34,\"\"))","v":""},{"$f":"IF(DAY(SzeptVas1)=1,IF(AND(YEAR(SzeptVas1+28)=NaptáriÉv,MONTH(SzeptVas1+28)=9),SzeptVas1+28,\"\"),IF(AND(YEAR(SzeptVas1+35)=NaptáriÉv,MONTH(SzeptVas1+35)=9),SzeptVas1+35,\"\"))","v":""},null,{"$f":"IF(DAY(OktVas1)=1,IF(AND(YEAR(OktVas1+22)=NaptáriÉv,MONTH(OktVas1+22)=10),OktVas1+22,\"\"),IF(AND(YEAR(OktVas1+29)=NaptáriÉv,MONTH(OktVas1+29)=10),OktVas1+29,\"\"))","v":"2022-10-24"},{"$f":"IF(DAY(OktVas1)=1,IF(AND(YEAR(OktVas1+23)=NaptáriÉv,MONTH(OktVas1+23)=10),OktVas1+23,\"\"),IF(AND(YEAR(OktVas1+30)=NaptáriÉv,MONTH(OktVas1+30)=10),OktVas1+30,\"\"))","v":"2022-10-25"},{"$f":"IF(DAY(OktVas1)=1,IF(AND(YEAR(OktVas1+24)=NaptáriÉv,MONTH(OktVas1+24)=10),OktVas1+24,\"\"),IF(AND(YEAR(OktVas1+31)=NaptáriÉv,MONTH(OktVas1+31)=10),OktVas1+31,\"\"))","v":"2022-10-26"},{"$f":"IF(DAY(OktVas1)=1,IF(AND(YEAR(OktVas1+25)=NaptáriÉv,MONTH(OktVas1+25)=10),OktVas1+25,\"\"),IF(AND(YEAR(OktVas1+32)=NaptáriÉv,MONTH(OktVas1+32)=10),OktVas1+32,\"\"))","v":"2022-10-27"},{"$f":"IF(DAY(OktVas1)=1,IF(AND(YEAR(OktVas1+26)=NaptáriÉv,MONTH(OktVas1+26)=10),OktVas1+26,\"\"),IF(AND(YEAR(OktVas1+33)=NaptáriÉv,MONTH(OktVas1+33)=10),OktVas1+33,\"\"))","v":"2022-10-28"},{"$f":"IF(DAY(OktVas1)=1,IF(AND(YEAR(OktVas1+27)=NaptáriÉv,MONTH(OktVas1+27)=10),OktVas1+27,\"\"),IF(AND(YEAR(OktVas1+34)=NaptáriÉv,MONTH(OktVas1+34)=10),OktVas1+34,\"\"))","v":"2022-10-29"},{"$f":"IF(DAY(OktVas1)=1,IF(AND(YEAR(OktVas1+28)=NaptáriÉv,MONTH(OktVas1+28)=10),OktVas1+28,\"\"),IF(AND(YEAR(OktVas1+35)=NaptáriÉv,MONTH(OktVas1+35)=10),OktVas1+35,\"\"))","v":"2022-10-30"},{"$nulls":3},"Utca, házszám"]
[null,null,{"$f":"IF(DAY(SzeptVas1)=1,IF(AND(YEAR(SzeptVas1+29)=NaptáriÉv,MONTH(SzeptVas1+29)=9),SzeptVas1+29,\"\"),IF(AND(YEAR(SzeptVas1+36)=NaptáriÉv,MONTH(SzeptVas1+36)=9),SzeptVas1+36,\"\"))","v":""},{"$f":"IF(DAY(SzeptVas1)=1,IF(AND(YEAR(SzeptVas1+30)=NaptáriÉv,MONTH(SzeptVas1+30)=9),SzeptVas1+30,\"\"),IF(AND(YEAR(SzeptVas1+37)=NaptáriÉv,MONTH(SzeptVas1+37)=9),SzeptVas1+37,\"\"))","v":""},{"$f":"IF(DAY(SzeptVas1)=1,IF(AND(YEAR(SzeptVas1+31)=NaptáriÉv,MONTH(SzeptVas1+31)=9),SzeptVas1+31,\"\"),IF(AND(YEAR(SzeptVas1+38)=NaptáriÉv,MONTH(SzeptVas1+38)=9),SzeptVas1+38,\"\"))","v":""},{"$f":"IF(DAY(SzeptVas1)=1,IF(AND(YEAR(SzeptVas1+32)=NaptáriÉv,MONTH(SzeptVas1+32)=9),SzeptVas1+32,\"\"),IF(AND(YEAR(SzeptVas1+39)=NaptáriÉv,MONTH(SzeptVas1+39)=9),SzeptVas1+39,\"\"))","v":""},{"$f":"IF(DAY(SzeptVas1)=1,IF(AND(YEAR(SzeptVas1+33)=NaptáriÉv,MONTH(SzeptVas1+33)=9),SzeptVas1+33,\"\"),IF(AND(YEAR(SzeptVas1+40)=NaptáriÉv,MONTH(SzeptVas1+40)=9),SzeptVas1+40,\"\"))","v":""},{"$f":"IF(DAY(SzeptVas1)=1,IF(AND(YEAR(SzeptVas1+34)=NaptáriÉv,MONTH(SzeptVas1+34)=9),SzeptVas1+34,\"\"),IF(AND(YEAR(SzeptVas1+41)=NaptáriÉv,MONTH(SzeptVas1+41)=9),SzeptVas1+41,\"\"))","v":""},{"$f":"IF(DAY(SzeptVas1)=1,IF(AND(YEAR(SzeptVas1+35)=NaptáriÉv,MONTH(SzeptVas1+35)=9),SzeptVas1+35,\"\"),IF(AND(YEAR(SzeptVas1+42)=NaptáriÉv,MONTH(SzeptVas1+42)=9),SzeptVas1+42,\"\"))","v":""},null,{"$f":"IF(DAY(OktVas1)=1,IF(AND(YEAR(OktVas1+29)=NaptáriÉv,MONTH(OktVas1+29)=10),OktVas1+29,\"\"),IF(AND(YEAR(OktVas1+36)=NaptáriÉv,MONTH(OktVas1+36)=10),OktVas1+36,\"\"))","v":"2022-10-31"},{"$f":"IF(DAY(OktVas1)=1,IF(AND(YEAR(OktVas1+30)=NaptáriÉv,MONTH(OktVas1+30)=10),OktVas1+30,\"\"),IF(AND(YEAR(OktVas1+37)=NaptáriÉv,MONTH(OktVas1+37)=10),OktVas1+37,\"\"))","v":""},{"$f":"IF(DAY(OktVas1)=1,IF(AND(YEAR(OktVas1+31)=NaptáriÉv,MONTH(OktVas1+31)=10),OktVas1+31,\"\"),IF(AND(YEAR(OktVas1+38)=NaptáriÉv,MONTH(OktVas1+38)=10),OktVas1+38,\"\"))","v":""},{"$f":"IF(DAY(OktVas1)=1,IF(AND(YEAR(OktVas1+32)=NaptáriÉv,MONTH(OktVas1+32)=10),OktVas1+32,\"\"),IF(AND(YEAR(OktVas1+39)=NaptáriÉv,MONTH(OktVas1+39)=10),OktVas1+39,\"\"))","v":""},{"$f":"IF(DAY(OktVas1)=1,IF(AND(YEAR(OktVas1+33)=NaptáriÉv,MONTH(OktVas1+33)=10),OktVas1+33,\"\"),IF(AND(YEAR(OktVas1+40)=NaptáriÉv,MONTH(OktVas1+40)=10),OktVas1+40,\"\"))","v":""},{"$f":"IF(DAY(OktVas1)=1,IF(AND(YEAR(OktVas1+34)=NaptáriÉv,MONTH(OktVas1+34)=10),OktVas1+34,\"\"),IF(AND(YEAR(OktVas1+41)=NaptáriÉv,MONTH(OktVas1+41)=10),OktVas1+41,\"\"))","v":""},{"$f":"IF(DAY(OktVas1)=1,IF(AND(YEAR(OktVas1+35)=NaptáriÉv,MONTH(OktVas1+35)=10),OktVas1+35,\"\"),IF(AND(YEAR(OktVas1+42)=NaptáriÉv,MONTH(OktVas1+42)=10),OktVas1+42,\"\"))","v":""}]
["Az U47 cellában adhatja meg a cég telefonszámát",{"$nulls":19},"Telefonszám"]
["A November címke a C48, a December címke pedig a K48 cellákban található. Az U48 cellában adhatja meg az e-mail címet",null,"NOVEMBER",{"$nulls":7},"DECEMBER",{"$nulls":9},"E-mail-cím"]
["A November hónap naptárának táblázata a C49–I55, a December hónap naptárának táblázata a K49–Q55 cellákban található. A következő utasítás az A51 cellában található",null,"H","K","SZE","CS","P","SZO","V",null,"H","K","SZE","CS","P","SZO","V",{"$nulls":3},"Honlap"]
[null,null,{"$f":"IF(DAY(NovVas1)=1,\"\",IF(AND(YEAR(NovVas1+1)=NaptáriÉv,MONTH(NovVas1+1)=11),NovVas1+1,\"\"))","v":""},{"$f":"IF(DAY(NovVas1)=1,\"\",IF(AND(YEAR(NovVas1+2)=NaptáriÉv,MONTH(NovVas1+2)=11),NovVas1+2,\"\"))","v":"2022-11-01"},{"$f":"IF(DAY(NovVas1)=1,\"\",IF(AND(YEAR(NovVas1+3)=NaptáriÉv,MONTH(NovVas1+3)=11),NovVas1+3,\"\"))","v":"2022-11-02"},{"$f":"IF(DAY(NovVas1)=1,\"\",IF(AND(YEAR(NovVas1+4)=NaptáriÉv,MONTH(NovVas1+4)=11),NovVas1+4,\"\"))","v":"2022-11-03"},{"$f":"IF(DAY(NovVas1)=1,\"\",IF(AND(YEAR(NovVas1+5)=NaptáriÉv,MONTH(NovVas1+5)=11),NovVas1+5,\"\"))","v":"2022-11-04"},{"$f":"IF(DAY(NovVas1)=1,\"\",IF(AND(YEAR(NovVas1+6)=NaptáriÉv,MONTH(NovVas1+6)=11),NovVas1+6,\"\"))","v":"2022-11-05"},{"$f":"IF(DAY(NovVas1)=1,IF(AND(YEAR(NovVas1)=NaptáriÉv,MONTH(NovVas1)=11),NovVas1,\"\"),IF(AND(YEAR(NovVas1+7)=NaptáriÉv,MONTH(NovVas1+7)=11),NovVas1+7,\"\"))","v":"2022-11-06"},null,{"$f":"IF(DAY(DecVas1)=1,\"\",IF(AND(YEAR(DecVas1+1)=NaptáriÉv,MONTH(DecVas1+1)=12),DecVas1+1,\"\"))","v":""},{"$f":"IF(DAY(DecVas1)=1,\"\",IF(AND(YEAR(DecVas1+2)=NaptáriÉv,MONTH(DecVas1+2)=12),DecVas1+2,\"\"))","v":""},{"$f":"IF(DAY(DecVas1)=1,\"\",IF(AND(YEAR(DecVas1+3)=NaptáriÉv,MONTH(DecVas1+3)=12),DecVas1+3,\"\"))","v":""},{"$f":"IF(DAY(DecVas1)=1,\"\",IF(AND(YEAR(DecVas1+4)=NaptáriÉv,MONTH(DecVas1+4)=12),DecVas1+4,\"\"))","v":"2022-12-01"},{"$f":"IF(DAY(DecVas1)=1,\"\",IF(AND(YEAR(DecVas1+5)=NaptáriÉv,MONTH(DecVas1+5)=12),DecVas1+5,\"\"))","v":"2022-12-02"},{"$f":"IF(DAY(DecVas1)=1,\"\",IF(AND(YEAR(DecVas1+6)=NaptáriÉv,MONTH(DecVas1+6)=12),DecVas1+6,\"\"))","v":"2022-12-03"},{"$f":"IF(DAY(DecVas1)=1,IF(AND(YEAR(DecVas1)=NaptáriÉv,MONTH(DecVas1)=12),DecVas1,\"\"),IF(AND(YEAR(DecVas1+7)=NaptáriÉv,MONTH(DecVas1+7)=12),DecVas1+7,\"\"))","v":"2022-12-04"}]
["Az U51 cellába illesztheti be a cég emblémáját",null,{"$f":"IF(DAY(NovVas1)=1,IF(AND(YEAR(NovVas1+1)=NaptáriÉv,MONTH(NovVas1+1)=11),NovVas1+1,\"\"),IF(AND(YEAR(NovVas1+8)=NaptáriÉv,MONTH(NovVas1+8)=11),NovVas1+8,\"\"))","v":"2022-11-07"},{"$f":"IF(DAY(NovVas1)=1,IF(AND(YEAR(NovVas1+2)=NaptáriÉv,MONTH(NovVas1+2)=11),NovVas1+2,\"\"),IF(AND(YEAR(NovVas1+9)=NaptáriÉv,MONTH(NovVas1+9)=11),NovVas1+9,\"\"))","v":"2022-11-08"},{"$f":"IF(DAY(NovVas1)=1,IF(AND(YEAR(NovVas1+3)=NaptáriÉv,MONTH(NovVas1+3)=11),NovVas1+3,\"\"),IF(AND(YEAR(NovVas1+10)=NaptáriÉv,MONTH(NovVas1+10)=11),NovVas1+10,\"\"))","v":"2022-11-09"},{"$f":"IF(DAY(NovVas1)=1,IF(AND(YEAR(NovVas1+4)=NaptáriÉv,MONTH(NovVas1+4)=11),NovVas1+4,\"\"),IF(AND(YEAR(NovVas1+11)=NaptáriÉv,MONTH(NovVas1+11)=11),NovVas1+11,\"\"))","v":"2022-11-10"},{"$f":"IF(DAY(NovVas1)=1,IF(AND(YEAR(NovVas1+5)=NaptáriÉv,MONTH(NovVas1+5)=11),NovVas1+5,\"\"),IF(AND(YEAR(NovVas1+12)=NaptáriÉv,MONTH(NovVas1+12)=11),NovVas1+12,\"\"))","v":"2022-11-11"},{"$f":"IF(DAY(NovVas1)=1,IF(AND(YEAR(NovVas1+6)=NaptáriÉv,MONTH(NovVas1+6)=11),NovVas1+6,\"\"),IF(AND(YEAR(NovVas1+13)=NaptáriÉv,MONTH(NovVas1+13)=11),NovVas1+13,\"\"))","v":"2022-11-12"},{"$f":"IF(DAY(NovVas1)=1,IF(AND(YEAR(NovVas1+7)=NaptáriÉv,MONTH(NovVas1+7)=11),NovVas1+7,\"\"),IF(AND(YEAR(NovVas1+14)=NaptáriÉv,MONTH(NovVas1+14)=11),NovVas1+14,\"\"))","v":"2022-11-13"},null,{"$f":"IF(DAY(DecVas1)=1,IF(AND(YEAR(DecVas1+1)=NaptáriÉv,MONTH(DecVas1+1)=12),DecVas1+1,\"\"),IF(AND(YEAR(DecVas1+8)=NaptáriÉv,MONTH(DecVas1+8)=12),DecVas1+8,\"\"))","v":"2022-12-05"},{"$f":"IF(DAY(DecVas1)=1,IF(AND(YEAR(DecVas1+2)=NaptáriÉv,MONTH(DecVas1+2)=12),DecVas1+2,\"\"),IF(AND(YEAR(DecVas1+9)=NaptáriÉv,MONTH(DecVas1+9)=12),DecVas1+9,\"\"))","v":"2022-12-06"},{"$f":"IF(DAY(DecVas1)=1,IF(AND(YEAR(DecVas1+3)=NaptáriÉv,MONTH(DecVas1+3)=12),DecVas1+3,\"\"),IF(AND(YEAR(DecVas1+10)=NaptáriÉv,MONTH(DecVas1+10)=12),DecVas1+10,\"\"))","v":"2022-12-07"},{"$f":"IF(DAY(DecVas1)=1,IF(AND(YEAR(DecVas1+4)=NaptáriÉv,MONTH(DecVas1+4)=12),DecVas1+4,\"\"),IF(AND(YEAR(DecVas1+11)=NaptáriÉv,MONTH(DecVas1+11)=12),DecVas1+11,\"\"))","v":"2022-12-08"},{"$f":"IF(DAY(DecVas1)=1,IF(AND(YEAR(DecVas1+5)=NaptáriÉv,MONTH(DecVas1+5)=12),DecVas1+5,\"\"),IF(AND(YEAR(DecVas1+12)=NaptáriÉv,MONTH(DecVas1+12)=12),DecVas1+12,\"\"))","v":"2022-12-09"},{"$f":"IF(DAY(DecVas1)=1,IF(AND(YEAR(DecVas1+6)=NaptáriÉv,MONTH(DecVas1+6)=12),DecVas1+6,\"\"),IF(AND(YEAR(DecVas1+13)=NaptáriÉv,MONTH(DecVas1+13)=12),DecVas1+13,\"\"))","v":"2022-12-10"},{"$f":"IF(DAY(DecVas1)=1,IF(AND(YEAR(DecVas1+7)=NaptáriÉv,MONTH(DecVas1+7)=12),DecVas1+7,\"\"),IF(AND(YEAR(DecVas1+14)=NaptáriÉv,MONTH(DecVas1+14)=12),DecVas1+14,\"\"))","v":"2022-12-11"},{"$nulls":3},"Ebben a cellában az embléma helyőrzője található."]
[null,null,{"$f":"IF(DAY(NovVas1)=1,IF(AND(YEAR(NovVas1+8)=NaptáriÉv,MONTH(NovVas1+8)=11),NovVas1+8,\"\"),IF(AND(YEAR(NovVas1+15)=NaptáriÉv,MONTH(NovVas1+15)=11),NovVas1+15,\"\"))","v":"2022-11-14"},{"$f":"IF(DAY(NovVas1)=1,IF(AND(YEAR(NovVas1+9)=NaptáriÉv,MONTH(NovVas1+9)=11),NovVas1+9,\"\"),IF(AND(YEAR(NovVas1+16)=NaptáriÉv,MONTH(NovVas1+16)=11),NovVas1+16,\"\"))","v":"2022-11-15"},{"$f":"IF(DAY(NovVas1)=1,IF(AND(YEAR(NovVas1+10)=NaptáriÉv,MONTH(NovVas1+10)=11),NovVas1+10,\"\"),IF(AND(YEAR(NovVas1+17)=NaptáriÉv,MONTH(NovVas1+17)=11),NovVas1+17,\"\"))","v":"2022-11-16"},{"$f":"IF(DAY(NovVas1)=1,IF(AND(YEAR(NovVas1+11)=NaptáriÉv,MONTH(NovVas1+11)=11),NovVas1+11,\"\"),IF(AND(YEAR(NovVas1+18)=NaptáriÉv,MONTH(NovVas1+18)=11),NovVas1+18,\"\"))","v":"2022-11-17"},{"$f":"IF(DAY(NovVas1)=1,IF(AND(YEAR(NovVas1+12)=NaptáriÉv,MONTH(NovVas1+12)=11),NovVas1+12,\"\"),IF(AND(YEAR(NovVas1+19)=NaptáriÉv,MONTH(NovVas1+19)=11),NovVas1+19,\"\"))","v":"2022-11-18"},{"$f":"IF(DAY(NovVas1)=1,IF(AND(YEAR(NovVas1+13)=NaptáriÉv,MONTH(NovVas1+13)=11),NovVas1+13,\"\"),IF(AND(YEAR(NovVas1+20)=NaptáriÉv,MONTH(NovVas1+20)=11),NovVas1+20,\"\"))","v":"2022-11-19"},{"$f":"IF(DAY(NovVas1)=1,IF(AND(YEAR(NovVas1+14)=NaptáriÉv,MONTH(NovVas1+14)=11),NovVas1+14,\"\"),IF(AND(YEAR(NovVas1+21)=NaptáriÉv,MONTH(NovVas1+21)=11),NovVas1+21,\"\"))","v":"2022-11-20"},null,{"$f":"IF(DAY(DecVas1)=1,IF(AND(YEAR(DecVas1+8)=NaptáriÉv,MONTH(DecVas1+8)=12),DecVas1+8,\"\"),IF(AND(YEAR(DecVas1+15)=NaptáriÉv,MONTH(DecVas1+15)=12),DecVas1+15,\"\"))","v":"2022-12-12"},{"$f":"IF(DAY(DecVas1)=1,IF(AND(YEAR(DecVas1+9)=NaptáriÉv,MONTH(DecVas1+9)=12),DecVas1+9,\"\"),IF(AND(YEAR(DecVas1+16)=NaptáriÉv,MONTH(DecVas1+16)=12),DecVas1+16,\"\"))","v":"2022-12-13"},{"$f":"IF(DAY(DecVas1)=1,IF(AND(YEAR(DecVas1+10)=NaptáriÉv,MONTH(DecVas1+10)=12),DecVas1+10,\"\"),IF(AND(YEAR(DecVas1+17)=NaptáriÉv,MONTH(DecVas1+17)=12),DecVas1+17,\"\"))","v":"2022-12-14"},{"$f":"IF(DAY(DecVas1)=1,IF(AND(YEAR(DecVas1+11)=NaptáriÉv,MONTH(DecVas1+11)=12),DecVas1+11,\"\"),IF(AND(YEAR(DecVas1+18)=NaptáriÉv,MONTH(DecVas1+18)=12),DecVas1+18,\"\"))","v":"2022-12-15"},{"$f":"IF(DAY(DecVas1)=1,IF(AND(YEAR(DecVas1+12)=NaptáriÉv,MONTH(DecVas1+12)=12),DecVas1+12,\"\"),IF(AND(YEAR(DecVas1+19)=NaptáriÉv,MONTH(DecVas1+19)=12),DecVas1+19,\"\"))","v":"2022-12-16"},{"$f":"IF(DAY(DecVas1)=1,IF(AND(YEAR(DecVas1+13)=NaptáriÉv,MONTH(DecVas1+13)=12),DecVas1+13,\"\"),IF(AND(YEAR(DecVas1+20)=NaptáriÉv,MONTH(DecVas1+20)=12),DecVas1+20,\"\"))","v":"2022-12-17"},{"$f":"IF(DAY(DecVas1)=1,IF(AND(YEAR(DecVas1+14)=NaptáriÉv,MONTH(DecVas1+14)=12),DecVas1+14,\"\"),IF(AND(YEAR(DecVas1+21)=NaptáriÉv,MONTH(DecVas1+21)=12),DecVas1+21,\"\"))","v":"2022-12-18"}]
[null,null,{"$f":"IF(DAY(NovVas1)=1,IF(AND(YEAR(NovVas1+15)=NaptáriÉv,MONTH(NovVas1+15)=11),NovVas1+15,\"\"),IF(AND(YEAR(NovVas1+22)=NaptáriÉv,MONTH(NovVas1+22)=11),NovVas1+22,\"\"))","v":"2022-11-21"},{"$f":"IF(DAY(NovVas1)=1,IF(AND(YEAR(NovVas1+16)=NaptáriÉv,MONTH(NovVas1+16)=11),NovVas1+16,\"\"),IF(AND(YEAR(NovVas1+23)=NaptáriÉv,MONTH(NovVas1+23)=11),NovVas1+23,\"\"))","v":"2022-11-22"},{"$f":"IF(DAY(NovVas1)=1,IF(AND(YEAR(NovVas1+17)=NaptáriÉv,MONTH(NovVas1+17)=11),NovVas1+17,\"\"),IF(AND(YEAR(NovVas1+24)=NaptáriÉv,MONTH(NovVas1+24)=11),NovVas1+24,\"\"))","v":"2022-11-23"},{"$f":"IF(DAY(NovVas1)=1,IF(AND(YEAR(NovVas1+18)=NaptáriÉv,MONTH(NovVas1+18)=11),NovVas1+18,\"\"),IF(AND(YEAR(NovVas1+25)=NaptáriÉv,MONTH(NovVas1+25)=11),NovVas1+25,\"\"))","v":"2022-11-24"},{"$f":"IF(DAY(NovVas1)=1,IF(AND(YEAR(NovVas1+19)=NaptáriÉv,MONTH(NovVas1+19)=11),NovVas1+19,\"\"),IF(AND(YEAR(NovVas1+26)=NaptáriÉv,MONTH(NovVas1+26)=11),NovVas1+26,\"\"))","v":"2022-11-25"},{"$f":"IF(DAY(NovVas1)=1,IF(AND(YEAR(NovVas1+20)=NaptáriÉv,MONTH(NovVas1+20)=11),NovVas1+20,\"\"),IF(AND(YEAR(NovVas1+27)=NaptáriÉv,MONTH(NovVas1+27)=11),NovVas1+27,\"\"))","v":"2022-11-26"},{"$f":"IF(DAY(NovVas1)=1,IF(AND(YEAR(NovVas1+21)=NaptáriÉv,MONTH(NovVas1+21)=11),NovVas1+21,\"\"),IF(AND(YEAR(NovVas1+28)=NaptáriÉv,MONTH(NovVas1+28)=11),NovVas1+28,\"\"))","v":"2022-11-27"},null,{"$f":"IF(DAY(DecVas1)=1,IF(AND(YEAR(DecVas1+15)=NaptáriÉv,MONTH(DecVas1+15)=12),DecVas1+15,\"\"),IF(AND(YEAR(DecVas1+22)=NaptáriÉv,MONTH(DecVas1+22)=12),DecVas1+22,\"\"))","v":"2022-12-19"},{"$f":"IF(DAY(DecVas1)=1,IF(AND(YEAR(DecVas1+16)=NaptáriÉv,MONTH(DecVas1+16)=12),DecVas1+16,\"\"),IF(AND(YEAR(DecVas1+23)=NaptáriÉv,MONTH(DecVas1+23)=12),DecVas1+23,\"\"))","v":"2022-12-20"},{"$f":"IF(DAY(DecVas1)=1,IF(AND(YEAR(DecVas1+17)=NaptáriÉv,MONTH(DecVas1+17)=12),DecVas1+17,\"\"),IF(AND(YEAR(DecVas1+24)=NaptáriÉv,MONTH(DecVas1+24)=12),DecVas1+24,\"\"))","v":"2022-12-21"},{"$f":"IF(DAY(DecVas1)=1,IF(AND(YEAR(DecVas1+18)=NaptáriÉv,MONTH(DecVas1+18)=12),DecVas1+18,\"\"),IF(AND(YEAR(DecVas1+25)=NaptáriÉv,MONTH(DecVas1+25)=12),DecVas1+25,\"\"))","v":"2022-12-22"},{"$f":"IF(DAY(DecVas1)=1,IF(AND(YEAR(DecVas1+19)=NaptáriÉv,MONTH(DecVas1+19)=12),DecVas1+19,\"\"),IF(AND(YEAR(DecVas1+26)=NaptáriÉv,MONTH(DecVas1+26)=12),DecVas1+26,\"\"))","v":"2022-12-23"},{"$f":"IF(DAY(DecVas1)=1,IF(AND(YEAR(DecVas1+20)=NaptáriÉv,MONTH(DecVas1+20)=12),DecVas1+20,\"\"),IF(AND(YEAR(DecVas1+27)=NaptáriÉv,MONTH(DecVas1+27)=12),DecVas1+27,\"\"))","v":"2022-12-24"},{"$f":"IF(DAY(DecVas1)=1,IF(AND(YEAR(DecVas1+21)=NaptáriÉv,MONTH(DecVas1+21)=12),DecVas1+21,\"\"),IF(AND(YEAR(DecVas1+28)=NaptáriÉv,MONTH(DecVas1+28)=12),DecVas1+28,\"\"))","v":"2022-12-25"}]
[null,null,{"$f":"IF(DAY(NovVas1)=1,IF(AND(YEAR(NovVas1+22)=NaptáriÉv,MONTH(NovVas1+22)=11),NovVas1+22,\"\"),IF(AND(YEAR(NovVas1+29)=NaptáriÉv,MONTH(NovVas1+29)=11),NovVas1+29,\"\"))","v":"2022-11-28"},{"$f":"IF(DAY(NovVas1)=1,IF(AND(YEAR(NovVas1+23)=NaptáriÉv,MONTH(NovVas1+23)=11),NovVas1+23,\"\"),IF(AND(YEAR(NovVas1+30)=NaptáriÉv,MONTH(NovVas1+30)=11),NovVas1+30,\"\"))","v":"2022-11-29"},{"$f":"IF(DAY(NovVas1)=1,IF(AND(YEAR(NovVas1+24)=NaptáriÉv,MONTH(NovVas1+24)=11),NovVas1+24,\"\"),IF(AND(YEAR(NovVas1+31)=NaptáriÉv,MONTH(NovVas1+31)=11),NovVas1+31,\"\"))","v":"2022-11-30"},{"$f":"IF(DAY(NovVas1)=1,IF(AND(YEAR(NovVas1+25)=NaptáriÉv,MONTH(NovVas1+25)=11),NovVas1+25,\"\"),IF(AND(YEAR(NovVas1+32)=NaptáriÉv,MONTH(NovVas1+32)=11),NovVas1+32,\"\"))","v":""},{"$f":"IF(DAY(NovVas1)=1,IF(AND(YEAR(NovVas1+26)=NaptáriÉv,MONTH(NovVas1+26)=11),NovVas1+26,\"\"),IF(AND(YEAR(NovVas1+33)=NaptáriÉv,MONTH(NovVas1+33)=11),NovVas1+33,\"\"))","v":""},{"$f":"IF(DAY(NovVas1)=1,IF(AND(YEAR(NovVas1+27)=NaptáriÉv,MONTH(NovVas1+27)=11),NovVas1+27,\"\"),IF(AND(YEAR(NovVas1+34)=NaptáriÉv,MONTH(NovVas1+34)=11),NovVas1+34,\"\"))","v":""},{"$f":"IF(DAY(NovVas1)=1,IF(AND(YEAR(NovVas1+28)=NaptáriÉv,MONTH(NovVas1+28)=11),NovVas1+28,\"\"),IF(AND(YEAR(NovVas1+35)=NaptáriÉv,MONTH(NovVas1+35)=11),NovVas1+35,\"\"))","v":""},null,{"$f":"IF(DAY(DecVas1)=1,IF(AND(YEAR(DecVas1+22)=NaptáriÉv,MONTH(DecVas1+22)=12),DecVas1+22,\"\"),IF(AND(YEAR(DecVas1+29)=NaptáriÉv,MONTH(DecVas1+29)=12),DecVas1+29,\"\"))","v":"2022-12-26"},{"$f":"IF(DAY(DecVas1)=1,IF(AND(YEAR(DecVas1+23)=NaptáriÉv,MONTH(DecVas1+23)=12),DecVas1+23,\"\"),IF(AND(YEAR(DecVas1+30)=NaptáriÉv,MONTH(DecVas1+30)=12),DecVas1+30,\"\"))","v":"2022-12-27"},{"$f":"IF(DAY(DecVas1)=1,IF(AND(YEAR(DecVas1+24)=NaptáriÉv,MONTH(DecVas1+24)=12),DecVas1+24,\"\"),IF(AND(YEAR(DecVas1+31)=NaptáriÉv,MONTH(DecVas1+31)=12),DecVas1+31,\"\"))","v":"2022-12-28"},{"$f":"IF(DAY(DecVas1)=1,IF(AND(YEAR(DecVas1+25)=NaptáriÉv,MONTH(DecVas1+25)=12),DecVas1+25,\"\"),IF(AND(YEAR(DecVas1+32)=NaptáriÉv,MONTH(DecVas1+32)=12),DecVas1+32,\"\"))","v":"2022-12-29"},{"$f":"IF(DAY(DecVas1)=1,IF(AND(YEAR(DecVas1+26)=NaptáriÉv,MONTH(DecVas1+26)=12),DecVas1+26,\"\"),IF(AND(YEAR(DecVas1+33)=NaptáriÉv,MONTH(DecVas1+33)=12),DecVas1+33,\"\"))","v":"2022-12-30"},{"$f":"IF(DAY(DecVas1)=1,IF(AND(YEAR(DecVas1+27)=NaptáriÉv,MONTH(DecVas1+27)=12),DecVas1+27,\"\"),IF(AND(YEAR(DecVas1+34)=NaptáriÉv,MONTH(DecVas1+34)=12),DecVas1+34,\"\"))","v":"2022-12-31"},{"$f":"IF(DAY(DecVas1)=1,IF(AND(YEAR(DecVas1+28)=NaptáriÉv,MONTH(DecVas1+28)=12),DecVas1+28,\"\"),IF(AND(YEAR(DecVas1+35)=NaptáriÉv,MONTH(DecVas1+35)=12),DecVas1+35,\"\"))","v":""}]
[null,null,{"$f":"IF(DAY(NovVas1)=1,IF(AND(YEAR(NovVas1+29)=NaptáriÉv,MONTH(NovVas1+29)=11),NovVas1+29,\"\"),IF(AND(YEAR(NovVas1+36)=NaptáriÉv,MONTH(NovVas1+36)=11),NovVas1+36,\"\"))","v":""},{"$f":"IF(DAY(NovVas1)=1,IF(AND(YEAR(NovVas1+30)=NaptáriÉv,MONTH(NovVas1+30)=11),NovVas1+30,\"\"),IF(AND(YEAR(NovVas1+37)=NaptáriÉv,MONTH(NovVas1+37)=11),NovVas1+37,\"\"))","v":""},{"$f":"IF(DAY(NovVas1)=1,IF(AND(YEAR(NovVas1+31)=NaptáriÉv,MONTH(NovVas1+31)=11),NovVas1+31,\"\"),IF(AND(YEAR(NovVas1+38)=NaptáriÉv,MONTH(NovVas1+38)=11),NovVas1+38,\"\"))","v":""},{"$f":"IF(DAY(NovVas1)=1,IF(AND(YEAR(NovVas1+32)=NaptáriÉv,MONTH(NovVas1+32)=11),NovVas1+32,\"\"),IF(AND(YEAR(NovVas1+39)=NaptáriÉv,MONTH(NovVas1+39)=11),NovVas1+39,\"\"))","v":""},{"$f":"IF(DAY(NovVas1)=1,IF(AND(YEAR(NovVas1+33)=NaptáriÉv,MONTH(NovVas1+33)=11),NovVas1+33,\"\"),IF(AND(YEAR(NovVas1+40)=NaptáriÉv,MONTH(NovVas1+40)=11),NovVas1+40,\"\"))","v":""},{"$f":"IF(DAY(NovVas1)=1,IF(AND(YEAR(NovVas1+34)=NaptáriÉv,MONTH(NovVas1+34)=11),NovVas1+34,\"\"),IF(AND(YEAR(NovVas1+41)=NaptáriÉv,MONTH(NovVas1+41)=11),NovVas1+41,\"\"))","v":""},{"$f":"IF(DAY(NovVas1)=1,IF(AND(YEAR(NovVas1+35)=NaptáriÉv,MONTH(NovVas1+35)=11),NovVas1+35,\"\"),IF(AND(YEAR(NovVas1+42)=NaptáriÉv,MONTH(NovVas1+42)=11),NovVas1+42,\"\"))","v":""},null,{"$f":"IF(DAY(DecVas1)=1,IF(AND(YEAR(DecVas1+29)=NaptáriÉv,MONTH(DecVas1+29)=12),DecVas1+29,\"\"),IF(AND(YEAR(DecVas1+36)=NaptáriÉv,MONTH(DecVas1+36)=12),DecVas1+36,\"\"))","v":""},{"$f":"IF(DAY(DecVas1)=1,IF(AND(YEAR(DecVas1+30)=NaptáriÉv,MONTH(DecVas1+30)=12),DecVas1+30,\"\"),IF(AND(YEAR(DecVas1+37)=NaptáriÉv,MONTH(DecVas1+37)=12),DecVas1+37,\"\"))","v":""},{"$f":"IF(DAY(DecVas1)=1,IF(AND(YEAR(DecVas1+31)=NaptáriÉv,MONTH(DecVas1+31)=12),DecVas1+31,\"\"),IF(AND(YEAR(DecVas1+38)=NaptáriÉv,MONTH(DecVas1+38)=12),DecVas1+38,\"\"))","v":""},{"$f":"IF(DAY(DecVas1)=1,IF(AND(YEAR(DecVas1+32)=NaptáriÉv,MONTH(DecVas1+32)=12),DecVas1+32,\"\"),IF(AND(YEAR(DecVas1+39)=NaptáriÉv,MONTH(DecVas1+39)=12),DecVas1+39,\"\"))","v":""},{"$f":"IF(DAY(DecVas1)=1,IF(AND(YEAR(DecVas1+33)=NaptáriÉv,MONTH(DecVas1+33)=12),DecVas1+33,\"\"),IF(AND(YEAR(DecVas1+40)=NaptáriÉv,MONTH(DecVas1+40)=12),DecVas1+40,\"\"))","v":""},{"$f":"IF(DAY(DecVas1)=1,IF(AND(YEAR(DecVas1+34)=NaptáriÉv,MONTH(DecVas1+34)=12),DecVas1+34,\"\"),IF(AND(YEAR(DecVas1+41)=NaptáriÉv,MONTH(DecVas1+41)=12),DecVas1+41,\"\"))","v":""},{"$f":"IF(DAY(DecVas1)=1,IF(AND(YEAR(DecVas1+35)=NaptáriÉv,MONTH(DecVas1+35)=12),DecVas1+35,\"\"),IF(AND(YEAR(DecVas1+42)=NaptáriÉv,MONTH(DecVas1+42)=12),DecVas1+42,\"\"))","v":""}]